{"text_format":"1","workbook":"xlsx","n_sheets":7,"sheets":["Instructie","Documentenaanvraag VKB","Risicobeoordeling VKB-blanco","Risicobeoordeling voorbeeld","Kenmerken tbv Kwaliteitsborging","Gevolgklasse","Eisen aan Keuringsplan"],"not_rendered":{"charts":0,"images":2,"macros":1,"external_links":0,"defined_names":9,"comments":4,"pivot_tables":0},"unopened":[],"bounds":{"document_bytes":16777216,"sheet_cells":100000,"rows_first":2000,"rows_last":500,"rows_between":2000,"halvings":0,"cell_chars":16384,"cell_head_chars":4096},"cells_cut":0,"cells_raw":0,"read":"whole","date_system":"1900"}

{"sheet":"Instructie","index":0,"n_rows":34,"n_cols":2,"rows_kept":34,"cut":false,"hidden":false,"merged":[]}
[]
[null,"Instructie t.b.v. het opstellen van een Risicobeoordeling VKB / opstellen van het Keuringsplan"]
[]
[]
[null,"Voor starten risicobeoordeling, ontvangen/beschikbare stukken beoordelen"]
[null,"Controle van de aanwezige documenten door het invullen van de documentenlijst in tabblad \"Documentenaanvraag VKB\"."]
[null,"Zijn alle gegevens aanwezig, dan kan er gestart worden met de Risicobeoordeling."]
[null,"Zijn nog niet voldoende gegevens aanwezig, wacht dan met de start van de Risicobeoordeling, zodat nageleverde gegevens geen invloed kunnen hebben op de reeds ingevulde delen van de Risicobeoordeling."]
[]
[null,"Het invullen van de Risicobeoordeling VKB"]
[null,"In kolom F kan het risicoaspect worden omschreven, de nummers van de risico-ID corresponderen met de afdelingen van Bouwbesluit 2012. \n(enkele voorbeelden van controle-/risicoaspecten zijn alvast benoemd ter inspiratie, tevens is er een voorbeeld Risicobeoordeling als tabblad opgenomen om meer richting te geven aan het risico-denken)"]
[]
[null,"In kolom E kan aan het betreffende risicoaspect een risicoklasse (1 t/m 4) worden toegekend o.b.v. de omschrijving in cel D17 t/m D21.\nDe kleur verschijnt automatisch bij het selecteren van de risicoklasse (scroll-down) en het aantal wordt automatisch doorgeteld in cel C17 t/m C21."]
[null,"- klasse 0 (afgehandeld)\nDeze kan alleen geselecteerd worden indien het aanvankelijk geconstateerde risico gedurende de uitwerking en/of uitvoering aantoonbaar is afgehandeld."]
[null,"- klasse 1 (gering)"]
[null,"- klasse 2 (mogelijk)"]
[null,"- klasse 3 (risico)"]
[null,"- klasse 4 (n.v.t.)\nDeze kan alleen geselecteerd worden indien het benoemde aspect niet van toepassing is voor deze gevolgklasse / gebruiksfunctie of niet van van toepassing is op het plan."]
[]
[null,"Daarna kunnen de beheersmaatregelen (kolom G t/m J) worden ingevuld, waarbij onderscheid is gemaakt in:"]
[null,"- Tekeningen/berekeningen\nbijv.: productietekeningen leverancier, Rc-berekening of uitvoeringsdetails"]
[null,"- Attesten/kwaliteitsverklaringen\nbijv.: product-, procescertificaten, certificaten van de montageploeg of een DoP (Declaration of Performance) etc."]
[null,"- Keuringen/metingen\nbijv.: keuringslijst xx, gerichte keuring op …, foto van …., luchtdichtheidsmeting etc."]
[null,"- Overig/acties\nbijv.: advies inwinnen bij/voor …, aanpassen tekenwerk na …, meenemen bij inkoop …, afstemmen met … etc."]
[]
[null,"De keuringsfrequentie / -omvang (kolom K) en het keuringsmoment (kolom L) kunnen daarna worden ingevuld, \nvoor enkele voorbeelden is een 'opmerking' geplaatst in kolom K24 en L24."]
[]
[null,"De laatste kolom is gereserveerd voor de bevindingen van de kwaliteitsborger, deze derhalve blanco laten."]
[]
[null,"Kenmerken t.b.v. Kwaliteitsborging"]
[null,"Dit tabblad bevat een aantal relevante kenmerken die van invloed zijn op de benodigde inzet van zowel de ondernemer als de kwaliteitsborger. Deze dient door de ondernemer ingevuld te worden.\nEr hangt (vooralsnog) bewust geen formule of score aan vast, maar de kwaliteitsborger kan zelf deze informatie meewegen bij de bepaling van de beoogde inzet. \nTevens kan de ondernemer, na enige ervaring hiermee te hebben opgedaan, de eigen inzet voor keuringen, controles en andere acties reeds in een vroeg stadium inschatten."]
[]
[null,"Overige tabbladen"]
[null,"Op de tabbladen \"Gevolgklasse\" en \"Eisen aan keuringsplan\" staat enige aanvullende informatie, welke nuttig kan zijn voor het invullen van de Risicobeoordeling en het opstellen van het Keuringsplan."]

{"sheet":"Documentenaanvraag VKB","index":1,"n_rows":100,"n_cols":258,"rows_kept":100,"cut":false,"hidden":false,"merged":[[15,5,15,6],[14,3,14,4],[14,5,14,6],[14,7,14,10],[16,7,17,7],[16,8,17,8],[16,9,17,9],[15,7,15,10]]}
[null,"DOCUMENTENLIJST  Instrument VKB - Gevolgklasse 1 (versie 6)",null,null,null,null,null,null,null,null,null,null,null,null,null,null,null,null,null,null,null,null,null,null,null,null,null,null,null,null,null,null,null,null,null,null,null,null,null,null,null,null,null,null,null,null,null,null,null,null,null,null,null,null,null,null,null,null,null,null,null,null,null,null,null,null,null,null,null,null,null,null,null,null,null,null,null,null,null,null,null,null,null,null,null,null,null,null,null,null,null,null,null,null,null,null,null,null,null,null,null,null,null,null,null,null,null,null,null,null,null,null,null,null,null,null,null,null,null,null,null,null,null,null,null,null,null,null,null,null,null,null,null,null,null,null,null,null,null,null,null,null,null,null,null,null,null,null,null,null,null,null,null,null,null,null,null,null,null,null,null,null,null,null,null,null,null,null,null,null,null,null,null,null,null,null,null,null,null,null,null,null,null,null,null,null,null,null,null,null,null,null,null,null,null,null,null,null,null,null,null,null,null,null,null,null,null,null,null,null,null,null,null,null,null,null,null,null,null,null,null,null,null,null,null,null,null,null,null,null,null,null,null,null,null,null,null,null,null,null,null,null,null,null,null,null,null,null,null,null,null,null,null,null,null,null,null,"22-11-2021 V 1.1: Teskstuele aanpassing, kolom As-Built dossier, Dossier Bevoegd Gezag en 2x toelichting kolommen 'garantieniveau' en 'contract niveau'."]
[null,"Datum: 22-11-2021 (V1.1.)"]
[null,"Fase: Risicobeoordeling/Uitvoering/As-built dossier"]
[]
[null,"Projectnummer:",null,"Legenda"]
[null,"Projectomschrijving:",null,null,"niet aanwezig en/of niet akkoord"]
[null,"Projectlocatie:",null,null,"niet aanwezig, uitgangspunten akkoord"]
[null,"Deelnemer:",null,null,"aanwezig en akkoord"]
[null,"Kwaliteitsmanager:",null,"X","ontwerp document"]
[null,"E-mail:",null,"O","as-built document"]
[null,"Telefoonnummer:",null,"rood","aanvullingen t.a.v. voorgaande versie"]
[null,"Kwaliteitsborger:"]
[]
["Alle in te dienen stukken vergezellen van een documentenlijst"]
["Planning aanlevering stukken",null,null,"8 weken voor start bouw",null,null,null,"4 weken voor ingebruikname/oplevering"]
[null,null,null,"Voor Risicobeoordeling",null,"Tijdens uitvoering",null,"As-built dossier"]
[null,null,null,"verplicht","indien aanwezig","verplicht","indien aanwezig","Dossier Bevoegd Gezag","garantie\n\nniveau","contract\n\nniveau","totaal"]
["Nr.","Documenten","Omschrijving (naam/nr. document)",null,"aanwezig",null,"aanwezig"]
[1,"Bouwkundige gegevens"]
["1.1","Bestek / Programma van Eisen\n",null,"X",null,null,null,null,null,null,"X"]
["1.2","Technische omschrijving intern (indien geen bestek)\n",null,null,"x",null,null,null,null,null,"X"]
["1.3","Technische omschrijving kopers\n",null,null,"x",null,null,null,null,"X","X"]
["1.4","Nota's van wijzigingen / aanvullingen\n",null,null,"x",null,"x",null,null,"X","X"]
["1.5","Afwerkstaat\n",null,"X",null,null,null,null,null,"X","X"]
["1.6","Meerwerkopties (omschrijving)\n",null,"X",null,null,"o",null,null,"O","O"]
[]
[2,"Bouwkundige tekeningen"]
["2.1","Situatie\n",null,"X",null,null,null,"O","O","O","O"]
["2.2","Plattegronden\n",null,"X",null,null,"o","O","O","O","O"]
["2.3","Doorsneden\n",null,"X",null,null,null,"O","O","O","O"]
["2.4","Gevels\n",null,"X",null,null,null,"O","O","O","O"]
["2.5","Buitenkozijnstaten\n",null,null,"x","O",null,"O","O","O","O"]
["2.6","Details\n",null,"X",null,null,"o","O","O","O","O"]
["2.7","Fragmenten \n(o.a. productietek. trappen, hekwerken, afschotplan dakdekker, prefab niet-dragend, prefab bergingen)\n",null,null,"x",null,"o",null,"O","O","O"]
["2.8","Meerwerkopties\n",null,"X",null,null,"o","O","O","O","O"]
[]
[3,"Constructieve gegevens"]
["3.1","Omschrijving constructieve uitgangspunten\n",null,"X",null,null,null,null,"X","X","X"]
["3.2","Constructieve hoofdberekening (incl. relevante kopersopties)\n",null,"X",null,null,null,"O","O","O","O"]
["3.3","Funderingsadvies (incl. eventueel bemalingsadvies)\n",null,"X",null,null,null,"O","O","O","O"]
["3.4","Sonderingen\n",null,"X",null,null,null,"X","X","X","X"]
["3.5","Paalberekening / -productietekening (leverancier)\n",null,"X",null,"O",null,"O","O","O","O"]
["3.6","Stabiliteitsberekening\n",null,"X",null,null,null,"X","X","X","X"]
["3.7","Kalenderstaten, verslag heibespreking\n","realisatiefase, extern heitoezicht?",null,null,"O",null,"O","O","O","O"]
["3.8","Controle paalmisstanden (+ herstelmaatregelen)\n","realisatiefase, verplichting geborgd?",null,null,"O",null,"O","O","O","O"]
["3.9","Akoestische doormeting (indien van toepassing)\n","realisatiefase, verplichting geborgd?",null,null,null,"o","O","O","O","O"]
["3.10","Detailberekeningen \n(o.a. fundering, vloeren, dragende wanden/kolommen, wapening, daken, balkons, spuwers, staal, HSB-elementen, lateien etc.)\n",null,null,"x","O",null,"O","O","O","O"]
["3.11","Controle constructieve samenhang\n","te beoordelen in realisatiefase",null,null,"O",null,"O","O","O","O"]
["3.12","Dilatatie-, mortel- en spouwankeradvies\n",null,null,"x",null,"o","O","O","O","O"]
[]
[4,"Constructietekeningen"]
["4.1","Palenplan\n",null,"X",null,"O",null,"O","O","O","O"]
["4.2","Funderingstekening (incl. wapening)\n",null,"X",null,"O",null,"O","O","O","O"]
["4.3","Plattegronden\n",null,"X",null,"O",null,"O","O","O","O"]
["4.4","Doorsneden\n",null,"X",null,"O",null,"O","O","O","O"]
["4.5","Wandaanzichten\n",null,null,"x",null,"o","O","O","O","O"]
["4.6","Details\n",null,"X",null,null,"o","O","O","O","O"]
["4.7","Productietekeningen \n(o.a. fundering, vloeren, dragende wanden/kolommen, wapening, daken, balkons, staal, HSB-elementen, lateien etc.)\n",null,null,null,"O",null,"O","O","O","O"]
[]
[5,"Installatiegegevens/-tekeningen"]
["5.1","Installatie beschrijving (uitgangspunten)\n",null,"X",null,null,null,null,null,"X","X"]
["5.2","Installatietechnische basisvoorzieningen","verplicht indien nog geen (concept) installatietekeningen\n","X",null,null,null,"X","X","X","X"]
["5.3","Riolering / hwa / waterinstallatie tracees","tekeningen en berekeningen (onderaannemer) \n",null,"x","O",null,"O","O","O","O"]
["5.4","Elektravoorzieningen\n","tekeningen (onderaannemer) ",null,"x","O",null,"O","O","O","O"]
["5.5","Ventilatievoorzieningen","tekeningen en berekeningen (onderaannemer) \n",null,"x","O",null,"O","O","O","O"]
["5.6","Verwarmingsinstallatie\n","tekeningen (onderaannemer) ",null,"x","O",null,null,"O","O","O"]
["5.7","Warmteverliesberekeningen (transmissie)\n","berekeningen (onderaannemer) ",null,"x",null,"o",null,"O","O","O"]
[]
[6,"Rapporten / toetsingen / berekeningen"]
["6.1","Geluidsrapport (gevel, intern, installatiegeluid)\n",null,null,"x",null,null,null,"X","X","X"]
["6.2","Ventilatiebalansberekening\n",null,"X",null,null,null,"O","O","O","O"]
["6.3","Daglichttoetredingsberekening\n",null,"X",null,null,null,"O","O","O","O"]
["6.4","Verhouding GO / VG\n",null,"X",null,null,null,"O","O","O","O"]
["6.5","Spuicapaciteitsberekening\n",null,"X",null,null,null,"O","O","O","O"]
["6.6","EPC-/BENG-berekening \n",null,"X",null,null,null,"O","O","O","O"]
["6.7","Bouwfysisch rapport (warmteweerstand, koudebrug)\n",null,null,"x","X",null,null,"O","O","O"]
["6.8","Brandveiligheidsrapport\n",null,null,"x",null,null,null,null,null,"X"]
["6.9","Projectadvies tegellijm leverancier\n",null,null,"x","X",null,null,"X","X","X"]
["6.10","Milieuprestatieberekening\n",null,null,"x",null,null,null,"O","O","O"]
["6.11","Checklist veilig onderhoud van gebouwen\n",null,null,"x",null,null,null,null,null,"X"]
[]
[7,"Keuringen"]
["7.1","Inregelstaten ventilatie\n","te beoordelen in realisatiefase",null,null,"O",null,"O","O","O","O"]
["7.2","Thermografisch onderzoek\n","indien van toepassing, te beoordelen in realisatiefase\n",null,null,"O",null,null,"O","O","O"]
["7.3","Luchtdichtheidsmeting\n","indien van toepassing, te beoordelen in realisatiefase\n",null,null,"O",null,"O","O","O","O"]
["7.4","Keuringsrapporten elektra\n","te beoordelen in realisatiefase",null,null,"O",null,null,"O","O","O"]
["7.5","Tapwaterdebiet (berekening cf. ISSO 55 òf meting)\n","te beoordelen in realisatiefase",null,null,"O",null,null,"O","O","O"]
["7.6","Afpers- / inregelrapporten installaties\n","te beoordelen in realisatiefase",null,null,"O",null,null,"O","O","O"]
["7.7","Attesten, certificaten, leveringsbonnen\n","t.b.v. constructieve veiligheid, bouwfysische prestaties, installaties en energielabel, e.e.a. te beoordelen in realisatiefase",null,null,"O",null,null,"O","O","O"]
[]
[8,"Overige"]
["8.1","Omgevingsvergunning en projectplan\n(projectplan alleen bij formeel proefproject)\n",null,"X",null,null,null,"X","X","X","X"]
["8.2","Risicobeoordeling door ondernemer\n","indien van toepassing","X",null,"X",null,"X","X","X","X"]
["8.3","Keuringsplan, -lijsten en uitvoeringsplanning\n","door ondernemer","X",null,"X",null,"X","X","X","X"]
["8.4","Risicoanalyse kwaliteitsborger\n",null,null,"x","X",null,null,"X","X","X"]
["8.5","Borgingsplan kwaliteitsborger\n",null,null,"x","X",null,null,"X","X","X"]
["8.6","Keuringsresultaten ondernemer\n",null,null,null,"X",null,null,"X","X","X"]
["8.7","Auditrapporten kwaliteitsborger\n",null,null,null,"X",null,null,"X","X","X"]
["8.8","Eindbeoordeling kwaliteitsborger\n",null,null,null,"O",null,"O","O","O","O"]
["8.9","Verklaring kwaliteitsborger\n",null,null,null,"O",null,"O","O","O","O"]

{"sheet":"Risicobeoordeling VKB-blanco","index":2,"n_rows":115,"n_cols":15,"rows_kept":115,"cut":false,"hidden":false,"merged":[[67,6,67,9],[12,3,12,12],[16,3,16,12],[108,6,108,9],[14,3,14,12],[13,3,13,12],[15,3,15,12],[90,6,90,9],[50,6,50,9],[73,6,73,9],[83,6,83,9],[18,6,18,9],[27,6,27,9],[39,6,39,9],[101,6,101,9],[55,6,55,9]]}
[]
[]
[]
[]
["Blanco Risicobeoordeling VKB"]
[]
["projectomschrijving:",null,null,"PROJECT","datum:","DATUM"]
["projectlocatie:",null,null,"LOCATIE","gewijzigd:"]
["projectnummer:",null,null,47000,"versie:","v.0"]
["gevolgklasse:",null,null,"CC1/CC2/CC3","status:","concept"]
[null,null,null,null,null,null,null,null,null,null,null,null,null,"2 (mogelijk)","v.2"]
["De aangegeven risicoklassen zijn als volgt:",null,null,null,null,null,null,null,null,null,null,null,null,"3 (risico)","v.3"]
["- klasse 0:","afgehandeld",{"$f":"IF(SUMIF(E21:E206,#REF!,O21:O204)=0,\"\",\"geconstateerd: \"&SUMIF(E21:E206,#REF!,O21:O204))","v":""},"De beheersing van het aanvankelijk geconstateerde risico is gedurende de uitwerking en/of uitvoering dusdanig aangetoond, dat het voldoende aannemelijk is dat aan de betreffende eis(en) wordt voldaan in de as-built situatie.\n",null,null,null,null,null,null,null,null,null,"4 (nvt)","v.4"]
["- klasse 1:","gering risico",{"$f":"IF(SUMIF(E21:E206,#REF!,O21:O204)=0,\"\",\"geconstateerd: \"&SUMIF(E21:E206,#REF!,O21:O204))","v":""},"De geconstateerde risico’s hebben geen effect op de beheersbaarheid van de As-Built kwaliteit van het project en voor het verstrekken/verkrijgen van de Verklaring door de kwaliteitsborger. \nOp basis van de huidige uitwerking en/of betrokken leveranciers/partijen in het huidige stadium zijn geen problemen met de kwaliteit/regelgeving te verwachten en zijn de technische risico’s beheerst. \nDe beoordeling geeft geen aanleiding tot aanvullende beheersmaatregelen voor het interne borgingsproces van het bouwproject.\n"]
["- klasse 2:","mogelijk risico",{"$f":"IF(SUMIF(E21:E206,N11,O21:O204)=0,\"\",\"geconstateerd: \"&SUMIF(E21:E206,N11,O21:O204))","v":"geconstateerd: 1"},"De geconstateerde risico’s hebben een mogelijk effect op de as-built kwaliteit van het project en voor het verstrekken/verkrijgen van de Verklaring. \nOp basis van de huidige uitwerking en/of betrokken leveranciers/partijen in het huidige stadium zijn er geen directe problemen met de kwaliteit/regelgeving te verwachten en is met de fase gerelateerde uitwerking het geconstateerde risico voldoende beheerst. \nOm het gesignaleerde mogelijke risico in het verdere proces van de interne borger te blijven beheersen zijn tijdig aanvullende beheersmaatregelen noodzakelijk. \n"]
["- klasse 3:","risico",{"$f":"IF(SUMIF(E21:E206,N12,O21:O204)=0,\"\",\"geconstateerd: \"&SUMIF(E21:E206,N12,O21:O204))","v":"geconstateerd: 1"},"De geconstateerde risico’s hebben een direct effect op de as-built kwaliteit van het project. Zonder verdere maatregelen kan er geen Verklaring worden verstrekt door de kwaliteitsborger aan de ondernemer. \nOp basis van de huidige uitwerking en/of betrokken leveranciers/partijen in het huidige stadium zijn problemen met de kwaliteit/regelgeving aantoonbaar te verwachten en zijn de geconstateerde risico’s onvoldoende beheerst. \nDe verdere voortgang van de kwaliteitsborging en/of de start bouw van het project wordt opgeschort, totdat de aanvullende beheersmaatregelen van de ondernemer zijn doorgevoerd en het aanwezige risico is gereduceerd tot een lagere risicoklasse.\n"]
["- klasse 4:","n.v.t.",{"$f":"IF(SUMIF(E21:E206,N13,O21:O204)=0,\"\",\"geconstateerd: \"&SUMIF(E21:E206,N13,O21:O204))","v":"geconstateerd: 7"},"Het betreffende risico-aspect c.q. de betreffende eis is niet van toepassing op dit project.\n"]
[]
["Hoofdstuk 2 Technische bouwvoorschriften uit het oogpunt van veiligheid",null,null,null,null,null,"Beheersmaatregelen"]
["Afdeling","Risico ID","Onderwerp","Aard van de eisen","Risicoklasse","Omschrijving Risicoaspect","Tekeningen / berekeningen","Attesten / kwaliteitsverklaringen","Keuringen / metingen","Overig / acties","Keuringsfrequentie / omvang","Keuringsmoment","Commentaar kwaliteitsborger"]
["Afd. 2.1","2.1.1","Algemene sterkte  van de bouwconstructie","Een te bouwen bouwwerk is voldoende bestand tegen de daarop werkende krachten. \n","0 (afgehandeld)","Paalfundering - ...\n\nenkele voorbeelden van controle-/risicoaspecten:\n- alle sonderingen uitgevoerd (rekening gehouden met bestaande bebouwing)\n- palenplan aanwezig (cf. funderingsadvies)\n- eventuele bestaande palen handhaven\n- type funderingspalen controleren\n- akoestisch doormeten / kalenderen / inmeting palen na inbrengen / bijhouden paalmisstanden\n- projectspecifieke risico's...\n",null,null,null,null,null,null,null,null,1]
[null,"2.1.2",null,null,"1 (gering)","Funderingsbalken (of -stroken) - ...\n\nenkele voorbeelden van controle-/risicoaspecten:\n- productietekeningen en -berekeningen leverancier (incl. wapening)\n- controle door constructeur uitgevoerd\n- uitvoering koppeling paal - balk\n- betonkwaliteit cf. uitgangspuntenrapport / berekening\n- gekozen opties reeds meegenomen\n- projectspecifieke risico's...\n",null,null,null,null,null,null,null,null,1]
[null,"2.1.3",null,null,"2 (mogelijk)","Stabiliteit - …\n\nenkele voorbeelden van controle-/risicoaspecten:\n- langsrichting en dwarsrichting bekend\n- kleine penanten versus uitbouwen\n- voorzieningen in vloeren bekend\n- voorzieningen in kap bekend\n- stabiliteitswanden bekend\n- projectspecifieke risico's...\n",null,null,null,null,null,null,null,null,1]
[null,"2.1.4",null,null,"3 (risico)","BG-vloer - …\n\nenkele voorbeelden van controle-/risicoaspecten:\n- type/overspanning inzichtelijk\n- systeemvloer of in situ\n- geborgd op tekeningen en berekeningen\n- evt. vloerwapening inzichtelijk\n- projectspecifieke risico's...\n",null,null,null,null,null,null,null,null,1]
[null,"2.1.5",null,null,"4 (nvt)","Verdiepingsvloeren - …\n\nenkele voorbeelden van controle-/risicoaspecten:\n- type/overspanning inzichtelijk\n- systeemvloer of in situ\n- geborgd op tekeningen en berekeningen\n- evt. vloerwapening inzichtelijk\n- kanalen/leidingen cf. richtlijn geïntegreerd\n- sparingen bekend\n- projectspecifieke risico's...\n",null,null,null,null,null,null,null,null,1]
[null,"2.1.6",null,null,null,"Kapconstructie - …\n\nenkele voorbeelden van controle-/risicoaspecten:\n- prefab of traditioneel\n- bijzondere kapvormen\n- lijnlasten op vloer\n- bevestiging (muurplaten, knieschotten ect.)\n- sparingen/dakkapellen bekend\n- projectspecifieke risico's...\n",null,null,null,null,null,null,null,null,1]
[null,"2.1.7",null,null,null,"Plat dak constructie - …\n\nenkele voorbeelden van controle-/risicoaspecten:\n- betonvloer of houten balken\n- lichte prefab dakplaat (bv. BouwDeck)\n- evt. wapening of houtafmeting inzichtelijk\n- dakopstand cf. BDA / noodoverstorten \n- sparingen bekend\n- projectspecifieke risico's...\n",null,null,null,null,null,null,null,null,1]
["Hoofdstuk 2 Technische bouwvoorschriften uit het oogpunt van veiligheid",null,null,null,null,null,"Beheersmaatregelen",null,null,null,null,null,null,null,1]
["Afdeling","Risico ID","Onderwerp","Aard van de eisen","Risicoklasse","Omschrijving Risicoaspect","Tekeningen / berekeningen","Attesten / kwaliteitsverklaringen","Keuringen / metingen","Overig / acties","Keuringsfrequentie / omvang","Keuringsmoment","Commentaar kwaliteitsborger",null,1]
[null,"2.1.8",null,null,null,"Gevelconstructie - …\n\nenkele voorbeelden van controle-/risicoaspecten:\n- steenspecificaties en morteladvies\n- murfor- en dilatatieadvies\n- spouwankeradvies/-berekening\n- lateien/geveldragers bekend\n- projectspecifieke risico's…\n",null,null,null,null,null,null,null,null,1]
["Afd. 2.2","2.2.1","Sterkte bij brand","Een te bouwen bouwwerk kan bij brand gedurende redelijke tijd worden verlaten en doorzocht, zonder dat er gevaar voor instorting is.\n",null,"Brandwerendheid constructies - …\n\nenkele voorbeelden van controle-/risicoaspecten:\n- geborgd op tekeningen en berekeningen\n- wapeningsafstand vóór en tijdens uitvoering gecontroleerd\n- betondekking vastgelegd\n- dikte vloer of trap met vluchtroute voldoende\n- projectspecifieke risico's…\n",null,null,null,null,null,null,null,null,1]
["Afd. 2.3","2.3.1","Afscheiding van vloer, trap en hellingbaan","Een te bouwen bouwwerk bevat voorzieningen waardoor het vallen van een vloer, een trap en een hellingbaan zo veel mogelijk wordt voorkomen. ",null,"Gevelkozijnen - …\n\nenkele voorbeelden van controle-/risicoaspecten:\n- gevelkozijnen tot vloerniveau, doovalveilig glas geborgd\n- NEN 3569 van toepassing verklaard\n- onder- / tussendorpel <850mm, doorvalbeveiliging toegepast\n- opstapmogelijkheid aanwezig (doorvalbeveiliging hierop aangepast)\n- projectspecifieke risico's…\n",null,null,null,null,null,null,null,null,1]
[null,"2.3.2",null,null,null,"Trap- / videhekwerken - …\n\nenkele voorbeelden van controle-/risicoaspecten:\n- hoogte, spijlafstand, spijldikte en bevestiging geborgd\n- opstapmogelijkheid aanwezig\n- projectspecifieke risico's…\n",null,null,null,null,null,null,null,null,1]
[null,"2.3.3",null,null,null,"(Frans) balkon- / galerijhekwerken - …\n\nenkele voorbeelden van controle-/risicoaspecten:\n- hoogte, spijlafstand, spijldikte en bevestiging geborgd\n- opstapmogelijkheid aanwezig\n- projectspecifieke risico's…\n",null,null,null,null,null,null,null,null,1]
["Afd. 2.4","2.4.1","Overbrugging van hoogteverschillen","Een te bouwen bouwwerk heeft voorzieningen voor het veilig overbruggen van hoogteverschillen door personen.\n",null,"Hoogteverschillen - …\n\nenkele voorbeelden van controle-/risicoaspecten:\n- zijn alle hoogteverschillen tussen vloeren waarover een vluchtroute voert en tussen vloeren van verblijfsgebieden, verblijfsruimten, toiletruimten, badruimten, of voor bezoekers bestemde vloeren, vloeren van een verkeersroute die deze ruimten met elkaar verbindt of tussen een van die vloeren en het aansluitende terrein middels een trap / hellingbaan te overbruggen\n- projectspecifieke risico's…\n",null,null,null,null,null,null,null,null,1]
["Afd. 2.5","2.5.1","Trap","Een te bouwen trap die een hoogteverschil als bedoeld in artikel 2.27 (afd. 2.4) overbrugt, kan veilig worden gebruikt.\n",null,"Trapafmetingen - …\n\nenkele voorbeelden van controle-/risicoaspecten:\n- trapbreedte, optrede en aantrede geborgd\n- vrije hoogte boven trap\n- trapbordes aanwezig\n- leuning aanwezig, hoogte geborgd\n- projectspecifieke risico's…\n",null,null,null,null,null,null,null,null,1]
["Afd. 2.6","2.6.1","Hellingbaan","Een te bouwen hellingbaan die een hoogteverschil als bedoeld in artikel 2.27 (afd. 2.4) overbrugt, kan veilig worden gebruikt.\n",null,"Hellingbaan - …\n\nenkele voorbeelden van controle-/risicoaspecten:\n- hellingbaanbreedte, hoogte i.r.t. helling geborgd\n- bordes aanwezig\n- geleiderand aanwezig\n- projectspecifieke risico's…\n",null,null,null,null,null,null,null,null,1]
["Afd. 2.7","2.7.1","Beweegbare constructie-onderdelen","Een te bouwen bouwwerk heeft zodanige beweegbare constructieonderdelen dat deze geen hinder veroorzaken bij het vluchten door en bij het gebruik van een aangrenzende openbare ruimte. \n",null,"Draaiende delen - …\n\nenkele voorbeelden van controle-/risicoaspecten:\n- als gebouw direct grenst aan voetpad / weg, naar buiten draaiende delen aanwezig, m.u.v. nooddeur zitten deze op voldoende hoogte\n- belemmeren deuren een beschermde vluchtroute, min. doorgang van 60cm aanwezig\n- projectspecifieke risico's…\n",null,null,null,null,null,null,null,null,1]
["Afd. 2.8","2.8.1","Beperking van het ontstaan van een brandgevaarlijke situatie","Een te bouwen bouwwerk is zodanig dat het ontstaan van een brandgevaarlijke situatie voldoende wordt beperkt.\n",null,"Brandgevaarlijke situatie - …\n\nenkele voorbeelden van controle-/risicoaspecten:\n- stookplaats, waarschijnlijk nvt gevolgklasse 1\n- uitwerking schachtwand (binnenzijde) geborgd\n- uitwerking rookgasafvoer geborgd\n- projectspecifieke risico's…\n",null,null,null,null,null,null,null,null,1]
["Hoofdstuk 2 Technische bouwvoorschriften uit het oogpunt van veiligheid",null,null,null,null,null,"Beheersmaatregelen",null,null,null,null,null,null,null,1]
["Afdeling","Risico ID","Onderwerp","Aard van de eisen","Risicoklasse","Omschrijving Risicoaspect","Tekeningen / berekeningen","Attesten / kwaliteitsverklaringen","Keuringen / metingen","Overig / acties","Keuringsfrequentie / omvang","Keuringsmoment","Commentaar kwaliteitsborger",null,1]
["Afd. 2.9","2.9.1","Beperking van het ontwikkelen van brand en rook","Een te bouwen bouwwerk is zodanig dat brand en rook zich niet snel kunnen ontwikkelen.",null,"Brandgedrag materialen - …\n\nenkele voorbeelden van controle-/risicoaspecten:\n- gangbare materialen (voldoet brand- en rookklasse)\n- uitvoering elektrische leidingen geborgd\n- projectspecifieke risico's…\n",null,null,null,null,null,null,null,null,1]
["Afd. 2.10 + 2.11","2.11.1","Beperking van uitbreiding van brand / Verdere beperking van uitbreiding van brand en beperking van verspreiding van rook","Een te bouwen bouwwerk is zodanig dat op een snelle uitbreiding van brand voldoende wordt beperkt en dat veilig kan worden gevlucht.",null,"Brandcompartimenten - …\n\nenkele voorbeelden van controle-/risicoaspecten:\n- brandcompartimenten / -scheidingen aangegeven\n- voldoende borging d.m.v. materialisering\n- brandscheidingen op detailniveau geborgd\n- projectspecifieke risico's…\n",null,null,null,null,null,null,null,null,1]
[null,"2.11.2",null,null,null,"Brandoverslag - …\n\nenkele voorbeelden van controle-/risicoaspecten:\n- brandoverslag berekeningen aanwezig\n- positie dakkapellen ten opzichte van elkaar\n- positie gevel- / dakopeningen voldoende afstand\n- positie gevel t.o.v. perceelsgrens\n- projectspecifieke risico's…\n",null,null,null,null,null,null,null,null,1]
["Afd. 2.12","2.12.1","Vluchtroutes","Een te bouwen bouwwerk heeft zodanige vluchtroutes dat bij brand een veilige plaats kan worden bereikt.",null,"Inrichting vluchtroutes - …\n\nenkele voorbeelden van controle-/risicoaspecten:\n- maximale loopafstand\n- rookmelders aanwezig in alle ruimten waardoor gevlucht wordt\n- vluchtdeuren zonder sleutel te openen (indien van toepassing)\n- projectspecifieke risico's…\n",null,null,null,null,null,null,null,null,1]
["Afd. 2.13","2.13.1","Hulpverlening bij brand","Een te bouwen bouwwerk is zodanig dat hulpverlening binnen redelijke tijd personen kan redden en brand kan bestrijden. \n\n","4 (nvt)","n.v.t. bij grondgebondenwoningen\nHulpverlening bij brand - …\n\nenkele voorbeelden van controle-/risicoaspecten:\n- opstelplaats bluswatervoorziening\n- brandweerlift aanwezig / uitvoering\n- loopafstand tot trappenhuis / brandweerlift geborgd\n- projectspecifieke risico's…\n",null,null,null,null,null,null,null,null,1]
["Afd. 2.14","2.14.1","Hoge en ondergrondse gebouwen","Een te bouwen bouwwerk waarin een vloer van een gebruiksgebied hoger dan 70 m boven of lager dan 8 m onder het meetniveau ligt, is zodanig ingericht dat het bouwwerk brandveilig is.\n","4 (nvt)","n.v.t. bij grondgebonden woningen\n\n",null,null,null,null,null,null,null,null,1]
["Afd. 2.15","2.15.1","Inbraakwerendheid","Een te bouwen woonfunctie, niet zijnde een woonwagen, biedt weerstand tegen inbraak.\n",null,"Inbraakwerendheid - …\n\nenkele voorbeelden van controle-/risicoaspecten:\n- hang- en sluitwerk voldoet aan weerstandsklasse 2\n- NEN 5096 geborgd\n- projectspecifieke risico's…\n",null,null,null,null,null,null,null,null,1]
["Afd. 2.16","2.16.1","Veiligheidszone en plasbrandaandachts-gebied","Een te bouwen bouwwerk in een veiligheidszone of plasbrandaandachtsgebied of boven de volle breedte van een basisnetroute indien de veiligheidszone slechts een deel van de breedte van die basisnetroute betreft, is zodanig dat het risico dat voortvloeit uit het vervoer van gevaarlijke stoffen voor personen in het bouwwerk beperkt is.\n",null,"normaliter n.v.t. bij grondgebonden woningen\n\n",null,null,null,null,null,null,null,null,1]
["Afd. 2.17","2.17.1","Aanvullende regels tunnelveiligheid","Een te bouwen wegtunnel met een tunnellengte van meer dan 250 m is zodanig dat de veiligheid voor het wegverkeer is gewaarborgd.\n","4 (nvt)","n.v.t. bij grondgebonden woningen\n\n",null,null,null,null,null,null,null,null,1]
["Hoofdstuk 3 Technische bouwvoorschriften uit het oogpunt van gezondheid",null,null,null,null,null,{"$f":"G$19","v":"Beheersmaatregelen"},{"$f":"H$20","v":"Attesten / kwaliteitsverklaringen"},{"$f":"I$20","v":"Keuringen / metingen"},{"$f":"J$20","v":"Overig / acties"},null,null,null,null,1]
[{"$f":"A$20","v":"Afdeling"},{"$f":"B$20","v":"Risico ID"},"Onderwerp","Aard van de eisen","Risicoklasse","Omschrijving Risicoaspect","Tekeningen / berekeningen","Attesten / kwaliteitsverklaringen","Keuringen / metingen","Overig / acties",{"$f":"K$20","v":"Keuringsfrequentie / omvang"},{"$f":"L$20","v":"Keuringsmoment"},"Commentaar kwaliteitsborger",null,1]
["Afd. 3.1","3.1.1","Bescherming tegen geluid van buiten","Een te bouwen bouwwerk biedt in een verblijfsgebied bescherming tegen geluid van buiten.",null,"Geluidwering gevels - …\n\nenkele voorbeelden van controle-/risicoaspecten:\n- geluidsrapportage aanwezig\n- geluidswerende voorzieningen geborgd, zoals beglazing, roosters/suskasten\n- projectspecifieke risico's…\n",null,null,null,null,null,null,null,null,1]
["Afd. 3.2","3.2.1","Bescherming tegen geluid van installaties","Een te bouwen bouwwerk biedt bescherming tegen geluid van installaties.",null,"Installatiegeluid WTW- / MV-unit - …\n\nenkele voorbeelden van controle-/risicoaspecten:\n- geluidsrapportage aanwezig\n- uitvoering scheidingswanden tussen techn.ruimte en verblijfsruimte geborgd\n- uitvoering deur (bij rechtstreeks toegang vanuit verblijfsruimte)\n- bevestiging unit aan wand met voldoende massa of middels montagestoel\n- toepassing akoestische slangen / dempers\n- projectspecifieke risico's…\n",null,null,null,null,null,null,null,null,1]
[null,"3.2.2",null,null,null,"Installatiegeluid warmtepomp - …\n\nenkele voorbeelden van controle-/risicoaspecten:\n- geluidsrapportage aanwezig\n- uitvoering scheidingswanden tussen techn.ruimte en verblijfsruimte geborgd\n- vloer van voldoende massa (meestal geen zwevende dekvloer)\n- flankerend geluidsoverdracht bij hellend dak\n- projectspecifieke risico's…\n",null,null,null,null,null,null,null,null,1]
["Hoofdstuk 3 Technische bouwvoorschriften uit het oogpunt van gezondheid",null,null,null,null,null,{"$f":"G$19","v":"Beheersmaatregelen"},{"$f":"H$20","v":"Attesten / kwaliteitsverklaringen"},{"$f":"I$20","v":"Keuringen / metingen"},{"$f":"J$20","v":"Overig / acties"},null,null,null,null,1]
[{"$f":"A$20","v":"Afdeling"},{"$f":"B$20","v":"Risico ID"},"Onderwerp","Aard van de eisen","Risicoklasse","Omschrijving Risicoaspect","Tekeningen / berekeningen","Attesten / kwaliteitsverklaringen","Keuringen / metingen","Overig / acties",{"$f":"K$20","v":"Keuringsfrequentie / omvang"},{"$f":"L$20","v":"Keuringsmoment"},"Commentaar kwaliteitsborger",null,1]
[null,"3.2.3",null,null,null,"Installatiegeluid leidingen / kanalen - …\n\nenkele voorbeelden van controle-/risicoaspecten:\n- kanalen- / leidingenverloop bekend\n- aantal / hoek bochten minimaal\n- inregeling op bouwbesluitstand\n- projectspecifieke risico's…\n",null,null,null,null,null,null,null,null,1]
[null,"3.2.4",null,null,null,"n.v.t. bij grondgebondenwoningen\nInstallatiegeluid liften - …\n\nenkele voorbeelden van controle-/risicoaspecten:\n- uitvoering scheidingswanden\n- bevestiging liftmachine\n- projectspecifieke risico's…\n",null,null,null,null,null,null,null,null,1]
["Afd. 3.3","3.3.1","Beperking van galm","Een te bouwen woongebouw heeft in een gemeenschappelijke verkeersruimte een zodanige geluidsabsorptie, dat geluidhinder door galm wordt beperkt.",null,"n.v.t. bij grondgebondenwoningen\nGalm - …\n\nenkele voorbeelden van controle-/risicoaspecten:\n- geluidsrapportage aanwezig\n- uitvoering akoestische plafonds gemeenschappelijke verkeersruimten (geluidsabsorptie)\n- projectspecifieke risico's…\n",null,null,null,null,null,null,null,null,1]
["Afd. 3.4","3.4.1","Geluidwering tussen ruimten","Een te bouwen bouwwerk biedt bescherming tegen geluidsoverlast tussen gebruiksfuncties en tussen ruimten in een woonfunctie voor zover in het bouwwerk een woonfunctie ligt.",null,"Geluidwering tussen woningen - …\n\nenkele voorbeelden van controle-/risicoaspecten:\n- geluidsrapportage aanwezig\n- uitvoering woningscheidende wanden / vloeren\n- aansluiting woningscheidende wanden op binnenspouwbladen / hellende daken\n- projectspecifieke risico's…\n",null,null,null,null,null,null,null,null,1]
[null,"3.4.2",null,null,null,"Geluidwering binnen woningen - …\n\nenkele voorbeelden van controle-/risicoaspecten:\n- geluidsrapportage aanwezig\n- uitvoering wanden tussen verblijfsruimten\n- verspringende inbouwdozen\n- projectspecifieke risico's…\n",null,null,null,null,null,null,null,null,1]
["Afd. 3.5","3.5.1","Wering van vocht ","Een te bouwen bouwwerk heeft zodanige scheidingsconstructies dat de vorming van allergenen door vocht in verblijfsgebieden, toiletruimten en badruimten voldoende wordt beperkt.",null,"Vochtwerende lagen - …\n\nenkele voorbeelden van controle-/risicoaspecten:\n- vochtwerende / dampopen lagen correct aangegeven\n- dampremmende lagen correct aangegeven\n- vochtafvoer voldoende geborgd\n- projectspecifieke risico's…\n",null,null,null,null,null,null,null,null,1]
[null,"3.5.2",null,null,null,"Wateropname sanitaire ruimten - …\n\nenkele voorbeelden van controle-/risicoaspecten:\n- hoogte tegelwerk toilet / badkamer\n- toepassing kimband / -pasta\n- toepassing schimmelwerende kitvoeg\n- positie inbouwdozen i.r.t. douche- / badhoek\n- type inbouwdozen overeenkomstig zone-indeling badkamer\n- afschot in douchehoek\n- projectspecifieke risico's…\n",null,null,null,null,null,null,null,null,1]
["Afd. 3.6","3.6.1","Luchtverversing","Een te bouwen bouwwerk heeft een zodanige voorziening voor luchtverversing dat het ontstaan van een voor de gezondheid nadelige kwaliteit van de binnenlucht wordt voorkomen.",null,"Ventilatie woningen - …\n\nenkele voorbeelden van controle-/risicoaspecten:\n- berekening aanwezig (minimaal VG-niveau)\n- oppervlakten volgens bouwk.tekening\n- uitgangspunten correct geborgd\n- berekeningen maatgevende opties aanwezig\n- projectspecifieke risico's…\n",null,null,null,null,null,null,null,null,1]
[null,"3.6.2",null,null,null,"Ventilatie niet-woonfuncties - …\n\nenkele voorbeelden van controle-/risicoaspecten:\n- berekening aanwezig\n- oppervlakten volgens bouwk.tekening\n- uitgangspunten correct geborgd\n- projectspecifieke risico's…\n",null,null,null,null,null,null,null,null,1]
["Afd. 3.7","3.7.1","Spuivoorziening","Een te bouwen bouwwerk heeft een voorziening voor het zo nodig snel kunnen afvoeren van sterk verontreinigde binnenlucht.\n",null,"Spuivoorzieningen - …\n\nenkele voorbeelden van controle-/risicoaspecten:\n- berekening aanwezig (minimaal VG-niveau)\n- oppervlakten volgens bouwk.tekening\n- uitgangspunten correct geborgd\n- berekeningen maatgevende opties aanwezig\n- projectspecifieke risico's…\n",null,null,null,null,null,null,null,null,1]
["Hoofdstuk 3 Technische bouwvoorschriften uit het oogpunt van gezondheid",null,null,null,null,null,{"$f":"G$19","v":"Beheersmaatregelen"},{"$f":"H$20","v":"Attesten / kwaliteitsverklaringen"},{"$f":"I$20","v":"Keuringen / metingen"},{"$f":"J$20","v":"Overig / acties"},null,null,null,null,1]
[{"$f":"A$20","v":"Afdeling"},{"$f":"B$20","v":"Risico ID"},"Onderwerp","Aard van de eisen","Risicoklasse","Omschrijving Risicoaspect","Tekeningen / berekeningen","Attesten / kwaliteitsverklaringen","Keuringen / metingen","Overig / acties",{"$f":"K$20","v":"Keuringsfrequentie / omvang"},{"$f":"L$20","v":"Keuringsmoment"},"Commentaar kwaliteitsborger",null,1]
["Afd. 3.8","3.8.1","Toevoer van verbrandingslucht en afvoer van rookgas","Een te bouwen bouwwerk met een opstelplaats voor een verbrandingstoestel heeft zodanige voorzieningen voor de toevoer van verbrandingslucht en de afvoer van rookgas, dat een voor de gezondheid nadelige kwaliteit van de binnenlucht wordt voorkomen.\n",null,"n.v.t. bij grondgebonden woningen\n\n",null,null,null,null,null,null,null,null,1]
["Afd. 3.9","3.9.1","Beperking van de aanwezigheid van schadelijke stoffen en ioniserende straling","Een te bouwen bouwwerk is zodanig dat het ontstaan van een voor de gezondheid nadelige kwaliteit van de binnenlucht door de aanwezigheid van voor de gezondheid schadelijke stoffen en ioniserende straling beperkt is.\n",null,"n.v.t. bij grondgebonden woningen\n\n",null,null,null,null,null,null,null,null,1]
["Afd. 3.10","3.10.1","Bescherming tegen ratten en muizen","Een te bouwen bouwwerk is zodanig dat het binnendringen van ratten en muizen wordt tegengegaan.\n",null,"Vogel- / muiswering - …\n\nenkele voorbeelden van controle-/risicoaspecten:\n- geen openingen groter dan 10mm aanwezig in gevel\n- maximale stootvoegbreedte geborgd\n- dakvoetprofiel met vogelwering geborgd\n- projectspecifieke risico's…\n",null,null,null,null,null,null,null,null,1]
["Afd. 3.11","3.11.1","Daglicht","Een te bouwen bouwwerk is zodanig dat daglicht in voldoende mate kan toetreden.",null,"Daglichttoetreding - …\n\nenkele voorbeelden van controle-/risicoaspecten:\n- berekening aanwezig\n- krijtstreepmethode toegepast (zie 4.1.1.)\n- oppervlakten volgens bouwk.tekening\n- uitgangspunten correct geborgd\n- berekening maatgevende opties aanwezig\n- projectspecifieke risico's…\n",null,null,null,null,null,null,null,null,1]
["Hoofdstuk 4 Technische bouwvoorschriften uit het oogpunt van bruikbaarheid",null,null,null,null,null,{"$f":"G$19","v":"Beheersmaatregelen"},{"$f":"H$20","v":"Attesten / kwaliteitsverklaringen"},"Keuringen / metingen","Overig / acties",null,null,null,null,1]
[{"$f":"A$20","v":"Afdeling"},{"$f":"B$20","v":"Risico ID"},"Onderwerp","Aard van de eisen","Risicoklasse","Omschrijving Risicoaspect","Tekeningen / berekeningen","Attesten / kwaliteitsverklaringen","Keuringen / metingen","Overig / acties",{"$f":"K$20","v":"Keuringsfrequentie / omvang"},{"$f":"L$20","v":"Keuringsmoment"},"Commentaar kwaliteitsborger",null,1]
["Afd. 4.1","4.1.1","Verblijfsgebied en verblijfsruimte","Een te bouwen bouwwerk heeft een verblijfsgebied waarin de voor de gebruiksfunctie kenmerkende activiteiten in een of meer verblijfsruimten kunnen plaatsvinden.",null,"GO / VG - …\n\nenkele voorbeelden van controle-/risicoaspecten:\n- berekening aanwezig (55% VG)\n- krijtstreepmethode toegepast (zie 3.11.1.)\n- oppervlakten volgens bouwk.tekening\n- berekening maatgevende opties aanwezig\n- overige afmetingen vlgns bouwbesluit\n- projectspecifieke risico's…\n",null,null,null,null,null,null,null,null,1]
["Afd. 4.2","4.2.1","Toiletruimte","Een te bouwen bouwwerk heeft voldoende toiletruimten.\n",null,"Toiletruimten - …\n\nenkele voorbeelden van controle-/risicoaspecten:\n- afmeting netto (binnen tegelwerk) 0.9 x 1.2m, bruto circa 0.93 x 1.23m\n- toepassing voorzetwand binnen 1.23m, wordt dan voldaan aan eisen 'Erkende gelijkwaardige oplossing' en is deze aangevraagd\n- overige afmetingen vlgns bouwbesluit\n- projectspecifieke risico's…\n",null,null,null,null,null,null,null,null,1]
["Afd. 4.3","4.3.1","Badruimte","Een te bouwen bouwwerk heeft voldoende badruimten.\n",null,"Badruimten - …\n\nenkele voorbeelden van controle-/risicoaspecten:\n- afmetingen vlgns bouwbesluit\n- projectspecifieke risico's…\n",null,null,null,null,null,null,null,null,1]
["Afd. 4.4","4.4.1","Bereikbaarheid en toegankelijkheid","Een te bouwen bouwwerk heeft voldoende bereikbare en toegankelijke ruimten.",null,"Vrije doorgang binnendeuren - …\n\nenkele voorbeelden van controle-/risicoaspecten:\n- deurafmetingen of vrije breedte / hoogte geborgd\n- hoogte drempels geborgd\n- projectspecifieke risico's…\n",null,null,null,null,null,null,null,null,1]
[null,"4.4.2",null,null,null,"Vrije doorgang woningtoegangsdeur - …\n\nenkele voorbeelden van controle-/risicoaspecten:\n- deurafmetingen of vrije breedte / hoogte geborgd\n- hoogte dorpel t.o.v. dekvloer geborgd\n- projectspecifieke risico's…\n",null,null,null,null,null,null,null,null,1]
["Afd. 4.5","4.5.1","Buitenberging","Een te bouwen woonfunctie heeft een rechtstreeks bereikbare buitenberging.",null,"Buitenberging - …\n\nenkele voorbeelden van controle-/risicoaspecten:\n- privé buitenberging aanwezig\n- afmetingen vlgns bouwbesluit\n- eventueel gemeenschappelijk (afmetingen overeenkomstig 'Bouwbrief Amsterdam')\n- projectspecifieke risico's…\n",null,null,null,null,null,null,null,null,1]
["Afd. 4.6","4.6.1","Buitenruimte","Een te bouwen woonfunctie heeft een rechtstreeks bereikbare buitenruimte.",null,"Buitenruimte - …\n\nenkele voorbeelden van controle-/risicoaspecten:\n- privé buitenruimte aanwezig\n- afmetingen vlgns bouwbesluit\n- eventueel gemeenschappelijk\n- projectspecifieke risico's…\n",null,null,null,null,null,null,null,null,1]
["Afd. 4.7","4.7.1","Opstelplaatsen","Een te bouwen bouwwerk heeft opstelplaatsen voor een aanrecht, een kooktoestel, een verwarmingstoestel en een warmwatertoestel.\n",null,"Opstelplaatsen - …\n\nenkele voorbeelden van controle-/risicoaspecten:\n- genoeg ruimte voor aanrecht en kooktoestel\n- afmetingen vlgns bouwbesluit\n- genoeg ruimte voor plaatsen en onderhouden verwarmingstoestel / warmwatertoestel\n- projectspecifieke risico's…\n",null,null,null,null,null,null,null,null,1]
["Hoofdstuk 5 Technische bouwvoorschriften uit het oogpunt van energiezuinigheid en milieu",null,null,null,null,null,{"$f":"G$19","v":"Beheersmaatregelen"},{"$f":"H$20","v":"Attesten / kwaliteitsverklaringen"},"Keuringen / metingen","Overig / acties",null,null,null,null,1]
[{"$f":"A$20","v":"Afdeling"},{"$f":"B$20","v":"Risico ID"},"Onderwerp","Aard van de eisen","Risicoklasse","Omschrijving Risicoaspect","Tekeningen / berekeningen","Attesten / kwaliteitsverklaringen","Keuringen / metingen","Overig / acties",{"$f":"K$20","v":"Keuringsfrequentie / omvang"},{"$f":"L$20","v":"Keuringsmoment"},"Commentaar kwaliteitsborger",null,1]
["Afd. 5.1","5.1.1","Energiezuinigheid","Een te bouwen bouwwerk is energiezuinig. Het betreft eisen aan energieprestatie, thermische isolatie en luchtvolumestroom.",null,"EPG-eisen - …\n\nenkele voorbeelden van controle-/risicoaspecten:\n- wordt er voldaan aan de energiebehoefte, primair fossiel energiegebruik en minimum waarde voor het aandeel hernieuwbare energie conform NTA 8800\n- kopersopties meegenomen\n- installatietechnische en bouwkundige uitgangspunten geborgd\n- projectspecifieke risico's…\n",null,null,null,null,null,null,null,null,1]
[null,"5.1.2",null,null,null,"Thermische isolatie - …\n\nenkele voorbeelden van controle-/risicoaspecten:\n- Rc-waarden minimaal vlgns bouwbesluit\n- warmteweerstandberekeningen aangeleverd (is met aangegeven opbouw de Rc-waarde te behalen)\n- projectspecifieke risico's…\n"]
[null,"5.1.3",null,null,null,"Luchtdichtheid - …\n\nenkele voorbeelden van controle-/risicoaspecten:\n- uitgangspunten t.b.v. qv10-waarde geborgd:\n  * luchtdicht afplakken\n  * luchtdichtingen aangegeven (in 1-lijn)\n  * luchtdichtheidsmeting\n- projectspecifieke risico's…\n",null,null,null,null,null,null,null,null,1]
["Afd. 5.2","5.2.1","Milieu","Een te bouwen bouwwerk is zodanig dat de belasting van het milieu door de in het bouwwerk toe te passen materialen wordt beperkt. ",null,"Milieuprestatie - …\n\nenkele voorbeelden van controle-/risicoaspecten:\n- milieuprestatie max. 1,0 aangetoond\n- voldoende marge voor evt. uitbouwen\n- projectspecifieke risico's…\n",null,null,null,null,null,null,null,null,1]
["Afd. 5.4","5.4.1","Laadinfrastructuur voor elektrische voertuigen","Een bouwwerk heeft voldoende laadinfrastructuur ten behoeve van elektrische voertuigen. ",null,"Laadinfrastructuur - …\n\nenkele voorbeelden van controle-/risicoaspecten:\n- leidingdoorvoeren voor oplaadpunten voor ieder parkeervak\n",null,null,null,null,null,null,null,null,1]
["Hoofdstuk 6 Voorschriften inzake installaties",null,null,null,null,null,{"$f":"G$19","v":"Beheersmaatregelen"},{"$f":"H$20","v":"Attesten / kwaliteitsverklaringen"},"Keuringen / metingen","Overig / acties",null,null,null,null,1]
[{"$f":"A$20","v":"Afdeling"},{"$f":"B$20","v":"Risico ID"},"Onderwerp","Aard van de eisen","Risicoklasse","Omschrijving Risicoaspect","Tekeningen / berekeningen","Attesten / kwaliteitsverklaringen","Keuringen / metingen","Overig / acties",{"$f":"K$20","v":"Keuringsfrequentie / omvang"},{"$f":"L$20","v":"Keuringsmoment"},"Commentaar kwaliteitsborger",null,1]
["Afd. 6.1","6.1.1","Verlichting ","Een bouwwerk heeft een zodanige verlichtingsinstallatie dat het bouwwerk veilig kan worden gebruikt en verlaten. \n","4 (nvt)","n.v.t. bij grondgebonden woningen\n\n",null,null,null,null,null,null,null,null,1]
["Afd. 6.2","6.2.1","Voorziening voor het afnemen en gebruiken van energie","Een bouwwerk met een voorziening voor het afnemen en gebruiken van energie heeft een veilige voorziening voor het afnemen en gebruiken van energie.\n",null,"Energievoorziening - …\n\nenkele voorbeelden van controle-/risicoaspecten:\n- NEN 1010 van toepassing verklaard\n- installatietekeningen (elektra) al aanwezig of indicatief op verkooptekeningen\n- in combinatie met 3.4.1 beoordelen\n- projectspecifieke risico's…\n",null,null,null,null,null,null,null,null,1]
["Afd. 6.3","6.3.1","Watervoorziening","Een bouwwerk met een voorziening voor drinkwater of warmwater heeft een voorziening voor drinkwater of warmwater die de gezondheid niet nadelig beïnvloedt. \n",null,"Watervoorziening - …\n\nenkele voorbeelden van controle-/risicoaspecten:\n- NEN 1006 van toepassing verklaard\n- installatietekeningen al aanwezig\n- legionellapreventie\n- projectspecifieke risico's…\n",null,null,null,null,null,null,null,null,1]
["Afd. 6.4","6.4.1","Afvoer van huishoudelijk afvalwater en hemelwater","Een bouwwerk heeft een zodanige voorziening voor de afvoer van huishoudelijk afvalwater of hemelwater dat het water zonder nadelige gevolgen voor de gezondheid kan worden afgevoerd.\n",null,"Riolering / hwa - …\n\nenkele voorbeelden van controle-/risicoaspecten:\n- NEN 3215 / NTR 3216 van toepassing verklaard\n- installatietekeningen al aanwezig\n- hemelwaterafvoeren op bouwk.tekeningen\n- projectspecifieke risico's…\n",null,null,null,null,null,null,null,null,1]
["Afd. 6.5","6.5.1","Tijdig vaststellen van brand","Een bouwwerk heeft zodanige voorzieningen dat brand tijdig kan worden ontdekt zodat veilig kan worden gevlucht.\n",null,"Rookmelders - …\n\nenkele voorbeelden van controle-/risicoaspecten:\n- posities en uitvoering aangegeven (in alle ruimten waardoor gevlucht wordt)\n- installatietekeningen al aanwezig\n- projectspecifieke risico's…\n",null,null,null,null,null,null,null,null,1]
["Afd. 6.6","6.6.1","Vluchten bij brand","Een bouwwerk heeft zodanige voorzieningen dat het ontvluchten goed kan verlopen.","4 (nvt)","n.v.t. bij grondgebonden woningen\n\n",null,null,null,null,null,null,null,null,1]
["Afd. 6.7","6.7.1","Bestrijden van brand","Een bouwwerk heeft een zodanige voorzieningen voor de bestrijding van brand, dat brand binnen redelijke tijd kan worden bestreden. ",null,"Bluswatervoorziening - …\n\nenkele voorbeelden van controle-/risicoaspecten:\n- bluswatervoorziening bekend (in overleg gemeente)\n- projectspecifieke risico's…\n",null,null,null,null,null,null,null,null,1]
["Afd. 6.8","6.8.1","Bereikbaarheid voor hulpverleningsdiensten","Een bouwwerk is zodanig bereikbaar voor hulpverleningsdiensten dat tijdig bluswerkzaamheden kunnen worden uitgevoerd en hulpverlening kan worden geboden.\n",null,"Hulpverlening - …\n\nenkele voorbeelden van controle-/risicoaspecten:\n- Bereikbaarheid hulpverleningsvoertuigen aangegeven (in overleg gemeente)\n- projectspecifieke risico's…\n",null,null,null,null,null,null,null,null,1]
["Afd. 6.9","6.9.1","Aanvullende regels tunnelveiligheid","Een wegtunnel met een tunnelengte van meer dan 250 m heeft zodanige voorzieningen da de veiligheid voor het wegverkeer is gewaarborgd. \n","4 (nvt)","n.v.t. bij grondgebonden woningen\n\n",null,null,null,null,null,null,null,null,1]
["Hoofdstuk 6 Voorschriften inzake installaties",null,null,null,null,null,{"$f":"G$19","v":"Beheersmaatregelen"},{"$f":"H$20","v":"Attesten / kwaliteitsverklaringen"},"Keuringen / metingen","Overig / acties",null,null,null,null,1]
[{"$f":"A$20","v":"Afdeling"},{"$f":"B$20","v":"Risico ID"},"Onderwerp","Aard van de eisen","Risicoklasse","Omschrijving Risicoaspect","Tekeningen / berekeningen","Attesten / kwaliteitsverklaringen","Keuringen / metingen","Overig / acties",{"$f":"K$20","v":"Keuringsfrequentie / omvang"},{"$f":"L$20","v":"Keuringsmoment"},"Commentaar kwaliteitsborger",null,1]
["Afd. 6.10","6.10.1","Bereikbaarheid van gebouwen voor gehandicapten","Een bouwwerk met een toegankelijkheidssector, een woongebouw zonder een toegankelijkheidssector en een gebouw zonder een toegankelijkheidssector zijn vanaf de openbare weg toegankelijk voor personen met een functiebeperking",null,"n.v.t. bij grondgebonden woningen\nBereikbaarheid - …\n\nenkele voorbeelden van controle-/risicoaspecten:\n- bovenzijde drempel op max. 20mm t.o.v. vloerpeil\n- projectspecifieke risico's…\n"]
["Afd. 6.11","6.11.1","Tegengaan van veel voorkomende criminaliteit","Een woongebouw heeft zodanige voorzieningen dat veel voorkomende criminaliteit wordt voorkomen.\n","4 (nvt)","n.v.t. bij grondgebonden woningen\n\n"]
["Afd. 6.12","6.12.1","Veilig onderhoud gebouwen","Een te bouwen gebouw is zodanig dat het onderhoud aan het gebouw veilig kan worden uitgevoerd.\n",null,"Veilig onderhoud - …\n\nenkele voorbeelden van controle-/risicoaspecten:\n- Checklist veilig onderhoud aanwezig\n- Voldoende draaiende delen voor raambewassing\n- projectspecifieke risico's…\n",null,null,null,null,null,null,null,null,1]
["Afd. 6.13","6.13.1","Technische bouwsystemen","Een te bouwen bouwwerk heeft technische bouwsystemen die voldoen aan eisen ten behoeve van een optimaal energiegebruik.\n",null,null,null,null,null,null,null,null,null,null,1]
["Afd. 6.14","6.14.1","Elektronische communicatie","Een te bouwen gebouw met een aansluiting op het distributienet voor elektriciteit heeft een voorziening voor de aansluiting op een openbaar elektronisch communicatienetwerk met hoge snelheid als bedoeld in artikel 2, derde lid, van de richtlijn breedband.\n",null,null,null,null,null,null,null,null,null,null,1]
["Aanvullende eisen vanuit omgevingsfactoren, bevoegd gezag, contractueel of SWK-modules",null,null,null,null,null,{"$f":"G$19","v":"Beheersmaatregelen"},{"$f":"H$20","v":"Attesten / kwaliteitsverklaringen"},"Keuringen / metingen","Overig / acties",null,null,null,null,1]
[null,{"$f":"B$20","v":"Risico ID"},"Onderwerp","Aard van de eisen","Risicoklasse","Omschrijving Risicoaspect","Tekeningen / berekeningen","Attesten / kwaliteitsverklaringen","Keuringen / metingen","Overig / acties",{"$f":"K$20","v":"Keuringsfrequentie / omvang"},{"$f":"L$20","v":"Keuringsmoment"},"Commentaar kwaliteitsborger",null,1]
["OMG","A1.1",null,null,null,null,null,null,null,null,null,null,null,null,1]
["BG","A1.2",null,null,null,null,null,null,null,null,null,null,null,null,1]
["CONTR","A1.3",null,null,null,null,null,null,null,null,null,null,null,null,1]
["SWK","A1.4"]
[null,"A1.5"]

{"sheet":"Risicobeoordeling voorbeeld","index":3,"n_rows":116,"n_cols":15,"rows_kept":116,"cut":false,"hidden":false,"merged":[[75,6,75,9],[86,6,86,9],[93,6,93,9],[109,6,109,9],[18,6,18,9],[30,6,30,9],[40,6,40,9],[60,6,60,9],[69,6,69,9],[52,6,52,9],[12,3,12,12],[13,3,13,12],[14,3,14,12],[15,3,15,12],[16,3,16,12]]}
[]
[]
[]
[]
["Risicobeoordeling VKB"]
[]
["projectomschrijving:",null,null,"PROJECT","datum:","DATUM"]
["projectlocatie:",null,null,"LOCATIE","gewijzigd:"]
["projectnummer:",null,null,47000,"versie:","v.0"]
["gevolgklasse:",null,null,"CC1/CC2/CC3","status:","concept"]
[null,null,null,null,null,null,null,null,null,null,null,null,null,"2 (mogelijk)","v.2"]
["De aangegeven risicoklassen zijn als volgt:",null,null,null,null,null,null,null,null,null,null,null,null,"3 (risico)","v.3"]
["- klasse 0:","afgehandeld",{"$f":"IF(SUMIF(E21:E207,#REF!,O21:O207)=0,\"\",\"geconstateerd: \"&SUMIF(E21:E207,#REF!,O21:O207))","v":""},"De beheersing van het aanvankelijk geconstateerde risico is gedurende de uitwerking en/of uitvoering dusdanig aangetoond, dat het voldoende aannemelijk is dat aan de betreffende eis(en) wordt voldaan in de as-built situatie.",null,null,null,null,null,null,null,null,null,"4 (nvt)","v.4"]
["- klasse 1:","gering risico",{"$f":"IF(SUMIF(E21:E207,#REF!,O21:O207)=0,\"\",\"geconstateerd: \"&SUMIF(E21:E207,#REF!,O21:O207))","v":""},"De geconstateerde risico’s hebben geen effect op de beheersbaarheid van de As-Built kwaliteit van het project en voor het verstrekken/verkrijgen van de Verklaring door de kwaliteitsborger. \nOp basis van de huidige uitwerking en/of betrokken leveranciers/partijen in het huidige stadium zijn geen problemen met de kwaliteit/regelgeving te verwachten en zijn de technische risico’s beheerst. \nDe beoordeling geeft geen aanleiding tot aanvullende beheersmaatregelen voor het interne borgingsproces van het bouwproject"]
["- klasse 2:","mogelijk risico",{"$f":"IF(SUMIF(E21:E207,N11,O21:O207)=0,\"\",\"geconstateerd: \"&SUMIF(E21:E207,N11,O21:O207))","v":"geconstateerd: 9"},"De geconstateerde risico’s hebben een mogelijk effect op de as-built kwaliteit van het project en voor het verstrekken/verkrijgen van de Verklaring. \nOp basis van de huidige uitwerking en/of betrokken leveranciers/partijen in het huidige stadium zijn er geen directe problemen met de kwaliteit/regelgeving te verwachten en is met de fase gerelateerde uitwerking het geconstateerde risico voldoende beheerst. \nOm het gesignaleerde mogelijke risico in het verdere proces van de interne borger te blijven beheersen zijn tijdig aanvullende beheersmaatregelen noodzakelijk. "]
["- klasse 3:","risico",{"$f":"IF(SUMIF(E21:E207,N12,O21:O207)=0,\"\",\"geconstateerd: \"&SUMIF(E21:E207,N12,O21:O207))","v":""},"De geconstateerde risico’s hebben een direct effect op de as-built kwaliteit van het project. Zonder verdere maatregelen kan er geen Verklaring worden verstrekt door de kwaliteitsborger aan de ondernemer. \nOp basis van de huidige uitwerking en/of betrokken leveranciers/partijen in het huidige stadium zijn problemen met de kwaliteit/regelgeving aantoonbaar te verwachten en zijn de geconstateerde risico’s onvoldoende beheerst. \nDe verdere voortgang van de kwaliteitsborging en/of de start bouw van het project wordt opgeschort, totdat de aanvullende beheersmaatregelen van de ondernemer zijn doorgevoerd en het aanwezige risico is gereduceerd tot een lagere risicoklasse."]
["- klasse 4:","n.v.t.",{"$f":"IF(SUMIF(E21:E207,N13,O21:O207)=0,\"\",\"geconstateerd: \"&SUMIF(E21:E207,N13,O21:O207))","v":"geconstateerd: 17"},"Het betreffende risico-aspect c.q. de betreffende eis is niet van toepassing op dit project."]
[]
["Hoofdstuk 2 Technische bouwvoorschriften uit het oogpunt van veiligheid",null,null,null,null,null,"Beheersmaatregelen"]
["Afdeling","Risico ID","Onderwerp","Aard van de eisen","Risicoklasse","Omschrijving Risicoaspect","Tekeningen / berekeningen","Attesten / kwaliteitsverklaringen","Keuringen / metingen","Overig / acties","Keuringsfrequentie / omvang","Keuringsmoment","Commentaar kwaliteitsborger"]
["Afd. 2.1","2.1.1","Algemene sterkte  van de bouwconstructie","Een te bouwen bouwwerk is voldoende bestand tegen de daarop werkende krachten. \n","2 (mogelijk)","Paalfundering - Keuze voor avegaarpalen is definitief. Dit is ook het vertrekpunt op het palenplan en het funderingsadvies.\nBerekening en tekening door leverancier dienen nog uitgevoerd te worden. Principe is wel indicatief uitgewerkt op constructieoverzichten. \nGeen bemerkingen op sonderingsposities.\n","Verificatie uitwerking leverancier in berekening, palenplan en tekening vóór start boorpalen.",null,"Opvolging paalafwijkingen aantoonbaar vastleggen in keuringen.\nAkoestische doormeting verifiëren.",null,null,null,null,null,1]
[null,"2.1.2",null,null,"2 (mogelijk)","Funderingsbalken - Constructieberekening is o.b.v. eerder plan, er is nog uitgegaan van een dakterras op tweede verdieping. Niet inzichtelijk of er nog meer afwijkende uitgangspunten van toepassing zijn.\nFunderingstekeningen zijn nog excl. kopersopties en excl. wapening. Betonsterkteklasse C20/25. \n","Verificatie productieboeken funderingsbalk op juiste afmeting, hoofd-, bijleg- en tandwapening , incl. controle door constructeur, vóór start onderdeel.",null,null,null,null,null,null,null,1]
[null,"2.1.3",null,null,"1 (gering)","Stabiliteit - Wordt verzorgd door de wanden van het casco en het platte dak. In dwarsrichting door betonnen woningscheidende wanden. In langsrichting door de voor- en achtergevel elementen. Dit vraagt voor de uitbouwen om nadere uitwerking van de muurdammen en koppeling aan de woningscheidende wanden, door leverancier. \n","Verificatie productietekeningen en berekeningen, incl. controle door constructeur, vóór start onderdeel.\n",null,"Uitvoering kritische onderdelen aantoonbaar vastleggen in keuringen.",null,null,null,null,null,1]
[null,"2.1.4",null,null,"1 (gering)","BG-vloer - Het type vloer is aangegeven in de Gewichts- en stabiliteitsberekening en verwerkt op de bouwkundige en constructieve plattegronden. Uitwerking vloerenleverancier nog aan te leveren.\n",null,null,null,null,null,null,null,null,1]
[null,"2.1.5",null,null,"1 (gering)","Verdiepingsvloeren - Het type vloer is aangegeven in de Statische berekening en verwerkt op de bouwkundige en constructieve plattegronden. Uitwerking vloeren door leverancier nog aan te leveren, incl. kopersopties.\n",null,null,null,null,null,null,null,null,1]
[null,"2.1.6",null,null,"1 (gering)","Prefab casco:\nDragende wanden - Berekening en tekening (incl. wapening) leverancier nog niet beschikbaar. Uitgangspunten en principe aansluitingen zijn echter correct geborgd. Aandacht voor juiste type en positie stelblokjes, K50 stelmortel en koppeling met hamerkopsparingen aan verdiepingvloer. Tevens aandacht voor vloerdragende betonlateien bij raam- en deursparingen in kopgevels.\n\nTraditioneel bouwsysteem:\nDragende wanden -  Dragende wanden zijn aangegeven in de Statische berekening.\n"]
[null,"2.1.7",null,null,"1 (gering)","Kapconstructie - Berekening en tekening leverancier (incl. verankering en dakkapellen) nog niet beschikbaar. Principe bevestigingen wel reeds benoemd. \n",null,null,null,null,null,null,null,null,1]
[null,"2.1.8",null,null,"2 (mogelijk)","Plat dak constructie - Uitgangspunten/belasting ten behoeve van plat dak constructie optionele uitbouw zijn niet vermeld in de aangeleverde stukken. Balklagen garages vermeld op constructietekeningen.\n",null,null,null,null,null,null,null,null,1]
[null,"2.1.9",null,null,"1 (gering)","Gevelconstructie - Nog geen dilatatie-, geveldrager-, latei- spouwanker- en lintvoegwapeningadvies beschikbaar. Voor start uitvoering metselwerk aanleveren. \n",null,null,null,null,null,null,null,null,1]
["Afd. 2.2","2.2.1","Sterkte bij brand","Een te bouwen bouwwerk kan bij brand gedurende redelijke tijd worden verlaten en doorzocht, zonder dat er gevaar voor instorting is.\n","1 (gering)","Brandwerendheid constructies - Is correct aangegeven in het constructief uitgangspuntenrapport en in het bouwkundig renvooi. Hier zal met de aanwezige constructie ook aan worden voldaan.\n",null,null,null,null,null,null,null,null,1]
["Hoofdstuk 2 Technische bouwvoorschriften uit het oogpunt van veiligheid",null,null,null,null,null,"Beheersmaatregelen"]
["Afdeling","Risico ID","Onderwerp","Aard van de eisen","Risicoklasse","Omschrijving Risicoaspect","Tekeningen / berekeningen","Attesten / kwaliteitsverklaringen","Keuringen / metingen","Overig / acties","Keuringsfrequentie / omvang","Keuringsmoment","Commentaar kwaliteitsborger"]
["Afd. 2.3","2.3.1","Afscheiding van vloer, trap en hellingbaan","Een te bouwen bouwwerk bevat voorzieningen waardoor het vallen van een vloer, een trap en een hellingbaan zo veel mogelijk wordt voorkomen. ","1 (gering)","Gevelkozijnen - De peilmaat van onderkant kozijnen is 886+vl. op zowel de 1e als 2e verdieping, waardoor met dikte onderdorpel erbij ruim voldoende borstwering aanwezig is. \n\nGevelkozijnen -  Diverse kozijnen zonder draaiende delen lopen tot vloerniveau. In het bestek is aangegeven dat de beglazing hiervan berekend moet worden conform NEN 6702. Deze norm is echter al sinds 2010 ingetrokken door NEN. Echter voldoende aannemelijk dat de glasleverancier wel de juiste norm hanteert.\n\nGevelkozijnen - Gevelkozijnen lopen door tot op vloerniveau, waardoor er geen opstapmogelijkheid aanwezig is. Bovenzijde tussendorpel > 1000mm boven afgewerkte vloer met daaronder doorvalveilig glas. Tevens staat in de TO dat NEN 3569 van toepassing is.\n",null,null,null,null,null,null,null,null,1]
[null,"2.3.2",null,null,"1 (gering)","Trap- / videhekwerken - Uitvoering in hoogte en spijlafstand zijn geborgd op bouwkundige tekeningen. Er worden standaard trappen en hekken van een trappenleverancier toegepast.\n\nTrap- / videhekwerken - Hoogte, spijlafstand, spijldikte en bevestiging traphekken geborgd in Bijlage 2 van de Bouwbesluittoets. Korte traphek op 2e verdieping (met leuning) is v.z.v. dicht paneel. Vrije hoogte voldoet ruimschoots o.b.v. doorsneden, evenals leuninghoogte.\n",null,null,null,null,null,null,null,null,1]
[null,"2.3.3",null,null,"1 (gering)","(Frans) balkon- / galerijhekwerken - De hoogte van de hekwerken is correct geborgd op de bouwkundige tekeningen en de uitvoering van het hekwerk is aangegeven op de bouwkundige details. O.a. afmetingen van spijlen en hart-op-hart afstand. Wel wijkt de afmeting af van de spijlen af van de omschrijving in de TO.\n\n(Frans) balkon- / galerijhekwerken - Conform uitwerking op detail 10 komt bovenzijde Frans balkonhek op 1022+vl. en is er geen opstapmogelijkheid aanwezig. Ook de afstand tussen hek en kozijn voldoet. De spijlafstand bedraagt < 100mm en voldoet. In de TO is geborgd dat de bevestiging aan het kozijn cf. voorschrift kozijnleverancier van toepassing zijn. Aandachtspunt dat dit in een hardhouten kozijn is en gedurende 50 jaar bestand moet zijn tegen bezwijken.\n",null,null,null,null,null,null,null,null,1]
["Afd. 2.4","2.4.1","Overbrugging van hoogteverschillen","Een te bouwen bouwwerk heeft voorzieningen voor het veilig overbruggen van hoogteverschillen door personen.\n","1 (gering)","Hoogteverschillen - Alle hoogteverschillen > 0,21m worden overbrugd met een vaste trap.\n\nHoogteverschillen - Er zijn geen hoogteverschillen van meer dan 0,21m, behalve tussen de verdiepingen welke middels trappen bereikbaar zijn.\n",null,null,null,null,null,null,null,null,1]
["Afd. 2.5","2.5.1","Trap","Een te bouwen trap die een hoogteverschil als bedoeld in artikel 2.27 (afd. 2.4) overbrugt, kan veilig worden gebruikt.\n","1 (gering)","Trapafmetingen - Trapbreedte is herleidbaar vanaf tekening, de optrede voldoet conform doorsnede en plattegrond en de en aantrede voldoet o.b.v. handmatig opmeten eveneens.\n\nTrapafmetingen - Bij elke trap is de breedte en de op- en aantrede correct vermeld.\n",null,null,null,null,null,null,null,null,1]
["Afd. 2.6","2.6.1","Hellingbaan","Een te bouwen hellingbaan die een hoogteverschil als bedoeld in artikel 2.27 (afd. 2.4) overbrugt, kan veilig worden gebruikt.\n","4 (nvt)","Hellingbaan - Er is geen hellingbaan in het plan aanwezig.\n\nHellingbaan - Ten behoeve van de toegang van de woningen is een hellingbaan opgenomen, welke ten aanzien van de helling en breedte voldoet aan de eisen. Tevens is er een geleiderand van voldoende hoogte aanwezig.\n",null,null,null,null,null,null,null,null,1]
["Afd. 2.7","2.7.1","Beweegbare constructie-onderdelen","Een te bouwen bouwwerk heeft zodanige beweegbare constructieonderdelen dat deze geen hinder veroorzaken bij het vluchten door en bij het gebruik van een aangrenzende openbare ruimte. \n","4 (nvt)","Draaiende delen - Er zijn geen draaiende delen aanwezig die in geopende stand over het openbaar terrein draaien.\n",null,null,null,null,null,null,null,null,1]
["Afd. 2.8","2.8.1","Beperking van het ontstaan van een brandgevaarlijke situatie","Een te bouwen bouwwerk is zodanig dat het ontstaan van een brandgevaarlijke situatie voldoende wordt beperkt.\n","1 (gering)","Brandgevaarlijke situatie - Geen rookgasafvoeren, stookplaatsen of schachten grenzend aan meerdere brandcompartimenten aanwezig.\n\nBrandgevaarlijke situatie - De aanwezige rookgasafvoer wordt uitgevoerd in daarvoor bestemd materiaal en gaat rechtstreeks naar buiten. Er is geen stookplaats (open haard) aanwezig. De aanwezige schachten zijn uitgevoerd in onbrandbaar materiaal en grenzen behalve bij de woningscheidende wand niet aan andere brandcompartimenten.\n",null,null,null,null,null,null,null,null,1]
["Hoofdstuk 2 Technische bouwvoorschriften uit het oogpunt van veiligheid",null,null,null,null,null,"Beheersmaatregelen"]
["Afdeling","Risico ID","Onderwerp","Aard van de eisen","Risicoklasse","Omschrijving Risicoaspect","Tekeningen / berekeningen","Attesten / kwaliteitsverklaringen","Keuringen / metingen","Overig / acties","Keuringsfrequentie / omvang","Keuringsmoment","Commentaar kwaliteitsborger"]
["Afd. 2.9","2.9.1","Beperking van het ontwikkelen van brand en rook","Een te bouwen bouwwerk is zodanig dat brand en rook zich niet snel kunnen ontwikkelen.","1 (gering)","Brandgedrag materialen div. oppervlakten - Er worden gangbare materialen toegepast, hiermee wordt aan de vereiste brand- en rookklasse voldaan.\n",null,null,null,null,null,null,null,null,1]
[null,null,null,null,"1 (gering)","Elektrische leidingen / pijpisolatie - Elektrische leidingen zijn weggewerkt in wanden en vloeren, waardoor hieraan geen eisen worden gesteld. Voor de aanwezige pijpisolatie is in de TO aangegeven dat de NEN-EN 13501-1 van toepassing is.\n"]
["Afd. 2.10 + 2.11","2.11.1","Beperking van uitbreiding van brand / Verdere beperking van uitbreiding van brand en beperking van verspreiding van rook","Een te bouwen bouwwerk is zodanig dat op een snelle uitbreiding van brand voldoende wordt beperkt en dat veilig kan worden gevlucht.","1 (gering)","Brandcompartimenten - De compartimentering en brandscheidingen zijn aangegeven op de bouwkundige plattegronden. Materialisering ter plaatse van de brandscheidingen voldoen aan de gestelde eisen. Middels de toegepaste strook minerale wol op details wordt brandoverslag voldoende voorkomen. \n",null,null,null,null,null,null,null,null,1]
[null,"2.11.2",null,null,"1 (gering)","Brandoverslag - De gevelkozijnen en (al dan niet optionele) dakramen en dakkapellen zijn dusdanig gesitueerd dat de kans op brandoverslag te verwaarlozen is. De afstand van gevel- en dakopeningen tot de erfgrens is eveneens voldoende om brandoverslag te voorkomen. \n",null,null,null,null,null,null,null,null,1]
["Afd. 2.12","2.12.1","Vluchtroutes","Een te bouwen bouwwerk heeft zodanige vluchtroutes dat bij brand een veilige plaats kan worden bereikt.","1 (gering)","Vluchtlengte - De maximaal toegestane gecorrigeerde loopafstand van 30 m wordt nergens overschreden.\n",null,null,null,null,null,null,null,null,1]
["Afd. 2.13","2.13.1","Hulpverlening bij brand","Een te bouwen bouwwerk is zodanig dat hulpverlening binnen redelijke tijd personen kan redden en brand kan bestrijden. \n","4 (nvt)","n.v.t. bij grondgebonden woningen",null,null,null,null,null,null,null,null,1]
["Afd. 2.14","2.14.1","Hoge en ondergrondse gebouwen","Een te bouwen bouwwerk waarin een vloer van een gebruiksgebied hoger dan 70 m boven of lager dan 8 m onder het meetniveau ligt, is zodanig ingericht dat het bouwwerk brandveilig is.\n","4 (nvt)","n.v.t. bij grondgebonden woningen",null,null,null,null,null,null,null,null,1]
["Afd. 2.15","2.15.1","Inbraakwerendheid","Een te bouwen woonfunctie, niet zijnde een woonwagen, biedt weerstand tegen inbraak.\n","1 (gering)","Inbraakwerendheid - Alle buitendeuren en -ramen worden voorzien van hang- en sluitwerk conform SKG** en voldoen daarmee aan het Bouwbesluit, inbraakwerendheidsklasse 2 volgens NEN 5096.\n",null,null,null,null,null,null,null,null,1]
["Afd. 2.16","2.16.1","Veiligheidszone en plasbrandaandachts-gebied","Een te bouwen bouwwerk in een veiligheidszone of plasbrandaandachtsgebied of boven de volle breedte van een basisnetroute indien de veiligheidszone slechts een deel van de breedte van die basisnetroute betreft, is zodanig dat het risico dat voortvloeit uit het vervoer van gevaarlijke stoffen voor personen in het bouwwerk beperkt is.\n","4 (nvt)","Het bouwplan ligt niet in een plasbrandaandachtsgebied.\n",null,null,null,null,null,null,null,null,1]
["Afd. 2.17","2.17.1","Aanvullende regels tunnelveiligheid","Een te bouwen wegtunnel met een tunnellengte van meer dan 250 m is zodanig dat de veiligheid voor het wegverkeer is gewaarborgd.\n","4 (nvt)","n.v.t. bij grondgebonden woningen\n\n",null,null,null,null,null,null,null,null,1]
["Hoofdstuk 3 Technische bouwvoorschriften uit het oogpunt van gezondheid",null,null,null,null,null,{"$f":"G$19","v":"Beheersmaatregelen"},{"$f":"H$20","v":"Attesten / kwaliteitsverklaringen"},{"$f":"I$20","v":"Keuringen / metingen"},{"$f":"J$20","v":"Overig / acties"},null,null,null,null,1]
[{"$f":"A$20","v":"Afdeling"},{"$f":"B$20","v":"Risico ID"},"Onderwerp","Aard van de eisen","Risicoklasse","Omschrijving Risicoaspect","Tekeningen / berekeningen","Attesten / kwaliteitsverklaringen","Keuringen / metingen","Overig / acties",{"$f":"K$20","v":"Keuringsfrequentie / omvang"},{"$f":"L$20","v":"Keuringsmoment"},"Commentaar kwaliteitsborger",null,1]
["Afd. 3.1","3.1.1","Bescherming tegen geluid van buiten","Een te bouwen bouwwerk biedt in een verblijfsgebied bescherming tegen geluid van buiten.","1 (gering)","Geluidwering gevels - Er is geen geluidsrapport aangeleverd. Op basis van de locatie zal er echter geen sprake zijn van overschrijding van de geluidsbelasting.\n",null,null,null,null,null,null,null,null,1]
["Afd. 3.2","3.2.1","Bescherming tegen geluid van installaties","Een te bouwen bouwwerk biedt bescherming tegen geluid van installaties.","2 (mogelijk)","Installatiegeluid units - WTW-units worden op zolder in een open ruimte (geen aangrenzend verblijfsruimte/-gebied) bij een HSB-wand gemonteerd, welke van onvoldoende massa is. Toepassing van eventuele montagestoel is niet omschreven in de TO.\nEventuele geluiddempers aan de WTW-units zijn eveneens niet vermeld in de stukken.\n",null,null,null,null,null,null,null,null,1]
[null,"3.2.2",null,null,"1 (gering)","Installatiegeluid warmtepomp - De warmtepomp wordt op de vloer gemonteerd in de techniekruimte op de begane grond. Geluidproductie van dit toestel is niet inzichtelijk, maar vergelijkbare toestellen geven beperkt installatiegeluid af.\n",null,null,null,null,null,null,null,null,1]
[null,"3.2.3",null,null,"2 (mogelijk)","Installatiegeluid leidingen/kanalen - Het kanalen- en leidingenverloop is nog niet geheel uitgewerkt. Op basis van de bouwkundige tekeningen is slechts beperkt inzicht in m.n. de kanalen.\n",null,null,null,null,null,null,null,null,1]
[null,"3.2.4",null,null,"4 (nvt)","n.v.t. bij grondgebondenwoningen\nInstallatiegeluid liften - …\n\nenkele voorbeelden van controle-/risicoaspecten:\n- uitvoering scheidingswanden\n- bevestiging liftmachine\n- projectspecifieke risico's…\n",null,null,null,null,null,null,null,null,1]
["Afd. 3.3","3.3.1","Beperking van galm","Een te bouwen woongebouw heeft in een gemeenschappelijke verkeersruimte een zodanige geluidsabsorptie, dat geluidhinder door galm wordt beperkt.\n","4 (nvt)","n.v.t. bij grondgebondenwoningen\n",null,null,null,null,null,null,null,null,1]
["Hoofdstuk 3 Technische bouwvoorschriften uit het oogpunt van gezondheid",null,null,null,null,null,{"$f":"G$19","v":"Beheersmaatregelen"},{"$f":"H$20","v":"Attesten / kwaliteitsverklaringen"},{"$f":"I$20","v":"Keuringen / metingen"},{"$f":"J$20","v":"Overig / acties"},null,null,null,null,1]
[{"$f":"A$20","v":"Afdeling"},{"$f":"B$20","v":"Risico ID"},"Onderwerp","Aard van de eisen","Risicoklasse","Omschrijving Risicoaspect","Tekeningen / berekeningen","Attesten / kwaliteitsverklaringen","Keuringen / metingen","Overig / acties",{"$f":"K$20","v":"Keuringsfrequentie / omvang"},{"$f":"L$20","v":"Keuringsmoment"},"Commentaar kwaliteitsborger",null,1]
["Afd. 3.4","3.4.1","Geluidwering tussen ruimten","Een te bouwen bouwwerk biedt bescherming tegen geluidsoverlast tussen gebruiksfuncties en tussen ruimten in een woonfunctie voor zover in het bouwwerk een woonfunctie ligt.","1 (gering)","Geluidwering tussen woningen - De uitvoering van de ankerloze woningscheidende wanden ter plaatse van de funderingsbalken en vloeren is goed uitgewerkt. Op de details is een strook isolatie in de ankerloze spouw opgenomen. De vloeren zijn bij de woningscheidingen vrij gehouden van elkaar. De spouw wordt op bg-vloer, verdiepingvloer-niveau en op de kap-bouwmuur aansluiting afgedicht met isolatie. Daarnaast worden de kanalen van de verdiepingsvloeren afgedicht.\n",null,null,null,null,null,null,null,null,1]
[null,"3.4.2",null,null,"1 (gering)","Geluidwering binnen woningen - In de TO staat dat de niet-dragende scheidingswanden worden uitgevoerd in gibo of gasbeton, waar nodig uitgevoerd in geluidbeperkende uitvoering. Op tekening zijn de wanden getekend in 100 mm dikte, met vermelding -20 dB.\n",null,null,null,null,null,null,null,null,1]
["Afd. 3.5","3.5.1","Wering van vocht ","Een te bouwen bouwwerk heeft zodanige scheidingsconstructies dat de vorming van allergenen door vocht in verblijfsgebieden, toiletruimten en badruimten voldoende wordt beperkt.","1 (gering)","Vochtwerende lagen - Op de details zijn de benodigde dampremmende en waterkerende lagen correct geborgd. Verder worden waterkerende folies, lood(vervanger) e.d. op de juiste plaatsen en met voldoende overlap voorzien. \n",null,null,null,null,null,null,null,null,1]
[null,"3.5.2",null,null,"1 (gering)","Wateropname sanitaire ruimten - Vloertegelwerk en hoogte wandtegelwerk in sanitaire ruimten is geborgd in de TO. Toepassing en positie van kimband / kimpasta is niet geborgd. Het type sanitairkit is niet vermeld in de TO. Aandachtspunt is dat de toegepaste kit zuurvrij en schimmelwerend is en dat deze tevens wordt toegepast bij doorvoeren in het tegelwerk. De wanden rondom badkamers worden uitgevoerd in standaard gipsblokken of gasbetonelementen van 100mm dikte. \n",null,null,null,null,null,null,null,null,1]
["Afd. 3.6","3.6.1","Luchtverversing","Een te bouwen bouwwerk heeft een zodanige voorziening voor luchtverversing dat het ontstaan van een voor de gezondheid nadelige kwaliteit van de binnenlucht wordt voorkomen.","2 (mogelijk)","Ventilatie woningen - De ventilatieberekeningen in de Bouwbesluittoetsing hebben betrekking op de basis woningtypen. Hierin zijn geen hiaten aangetroffen. Met berekening is het merk en type ventilatierooster per situatie bepaald, evenals de minimale deurspleten voor overstroomvoorziening. Er zijn nog geen berekeningen van (combinaties van) relevante kopersopties beschikbaar. \n",null,null,null,null,null,null,null,null,1]
[null,"3.6.2",null,null,"4 (nvt)","Ventilatie niet-woonfuncties - n.v.t. bij grondgebondenwoningen.\n",null,null,null,null,null,null,null,null,1]
["Afd. 3.7","3.7.1","Spuivoorziening","Een te bouwen bouwwerk heeft een voorziening voor het zo nodig snel kunnen afvoeren van sterk verontreinigde binnenlucht.\n","1 (gering)","Spuivoorzieningen - Bij de berekeningen voor spuiventilatie zijn geen afwijkingen gevonden. Alle verblijfsruimten en -gebieden voldoen ruimschoots, ook bij de ruimtevergrotende opties en keuzes voor andere ramen en deuren zal worden voldaan.\n",null,null,null,null,null,null,null,null,1]
["Hoofdstuk 3 Technische bouwvoorschriften uit het oogpunt van gezondheid",null,null,null,null,null,{"$f":"G$19","v":"Beheersmaatregelen"},{"$f":"H$20","v":"Attesten / kwaliteitsverklaringen"},{"$f":"I$20","v":"Keuringen / metingen"},{"$f":"J$20","v":"Overig / acties"},null,null,null,null,1]
[{"$f":"A$20","v":"Afdeling"},{"$f":"B$20","v":"Risico ID"},"Onderwerp","Aard van de eisen","Risicoklasse","Omschrijving Risicoaspect","Tekeningen / berekeningen","Attesten / kwaliteitsverklaringen","Keuringen / metingen","Overig / acties",{"$f":"K$20","v":"Keuringsfrequentie / omvang"},{"$f":"L$20","v":"Keuringsmoment"},"Commentaar kwaliteitsborger",null,1]
["Afd. 3.8","3.8.1","Toevoer van verbrandingslucht en afvoer van rookgas","Een te bouwen bouwwerk met een opstelplaats voor een verbrandingstoestel heeft zodanige voorzieningen voor de toevoer van verbrandingslucht en de afvoer van rookgas, dat een voor de gezondheid nadelige kwaliteit van de binnenlucht wordt voorkomen.\n","4 (nvt)","n.v.t. bij grondgebonden woningen\n\n",null,null,null,null,null,null,null,null,1]
["Afd. 3.9","3.9.1","Beperking van de aanwezigheid van schadelijke stoffen en ioniserende straling","Een te bouwen bouwwerk is zodanig dat het ontstaan van een voor de gezondheid nadelige kwaliteit van de binnenlucht door de aanwezigheid van voor de gezondheid schadelijke stoffen en ioniserende straling beperkt is.\n","4 (nvt)","n.v.t. bij grondgebonden woningen\n\n",null,null,null,null,null,null,null,null,1]
["Afd. 3.10","3.10.1","Bescherming tegen ratten en muizen","Een te bouwen bouwwerk is zodanig dat het binnendringen van ratten en muizen wordt tegengegaan.\n","1 (gering)","Vogel- / muiswering - Uit de details blijkt dat voldaan wordt aan deze eis. Dit blijkt tevens uit de toepassing van vloerventilatiekokers met muiswerend rooster.\n",null,null,null,null,null,null,null,null,1]
["Afd. 3.11","3.11.1","Daglicht","Een te bouwen bouwwerk is zodanig dat daglicht in voldoende mate kan toetreden.","2 (mogelijk)","Daglichttoetreding - In de daglichtberekeningen zijn geen hiaten aangetroffen voor de basistypen. Van de geboden opties zijn geen berekeningen aangeleverd, waarbij met name de 'diepe' uitbouw maatgevend zal zijn.\n",null,null,null,null,null,null,null,null,1]
["Hoofdstuk 4 Technische bouwvoorschriften uit het oogpunt van bruikbaarheid",null,null,null,null,null,{"$f":"G$19","v":"Beheersmaatregelen"},{"$f":"H$20","v":"Attesten / kwaliteitsverklaringen"},"Keuringen / metingen","Overig / acties",null,null,null,null,1]
[{"$f":"A$20","v":"Afdeling"},{"$f":"B$20","v":"Risico ID"},"Onderwerp","Aard van de eisen","Risicoklasse","Omschrijving Risicoaspect","Tekeningen / berekeningen","Attesten / kwaliteitsverklaringen","Keuringen / metingen","Overig / acties",{"$f":"K$20","v":"Keuringsfrequentie / omvang"},{"$f":"L$20","v":"Keuringsmoment"},"Commentaar kwaliteitsborger",null,1]
["Afd. 4.1","4.1.1","Verblijfsgebied en verblijfsruimte","Een te bouwen bouwwerk heeft een verblijfsgebied waarin de voor de gebruiksfunctie kenmerkende activiteiten in een of meer verblijfsruimten kunnen plaatsvinden.","1 (gering)","GO / VG - Voor alle woningtypen zijn de verblijfsgebieden en verblijfsruimten getoetst. Alle woningen voldoen ruimschoots. Dit is echter nog niet in samenhang met maatgevende en/of gekozen opties getoetst. Echter voldoende aannemelijk dat hiervoor ook wordt voldaan.\n",null,null,null,null,null,null,null,null,1]
["Afd. 4.2","4.2.1","Toiletruimte","Een te bouwen bouwwerk heeft voldoende toiletruimten.\n","1 (gering)","Toiletruimten -  Bij hangtoiletten mag de lengte op vloerniveau < 1,2 m zijn, mits de ruimte voor de toiletpot minimaal 0,5 m is (erkende gelijkwaardige oplossing). Alle toiletruimten beschikken over een minimale afmeting van 0,95 x 1,25m waarmee reeds voldaan wordt aan de eisen.\n",null,null,null,null,null,null,null,null,1]
["Afd. 4.3","4.3.1","Badruimte","Een te bouwen bouwwerk heeft voldoende badruimten.\n","1 (gering)","Badruimten - Alle woningen beschikken over minimaal 1  badruimte die aan de ruimtelijke eisen voldoet.\n",null,null,null,null,null,null,null,null,1]
["Afd. 4.4","4.4.1","Bereikbaarheid en toegankelijkheid","Een te bouwen bouwwerk heeft voldoende bereikbare en toegankelijke ruimten.","1 (gering)","Vrije doorgang binnendeuren - Op de plattegronden staan de deurbreedtes aangegeven, welke voldoen aan de eisen. In de Technische omschrijving staat de deurhoogte aangegeven, welke eveneens voldoet.\n",null,null,null,null,null,null,null,null,1]
[null,"4.4.2",null,null,"2 (mogelijk)","Vrije doorgang woningtoegangsdeur - De afmeting van woningtoegangsdeuren staat in de TO, waarbij een deurhoogte gehanteerd wordt van 2300mm. Dit geeft een vrije doorgang < 2300mm. Tevens komt de maat niet overeen met hetgeen getekend is in de bouwkundige gevels (begane grond) en details.\n",null,null,null,null,null,null,null,null,1]
[null,"4.4.3",null,null,"1 (gering)","Drempelhoogte - De enige drempels binnen de woningen zijn bij de toilet- en badruimten. Op zowel renvooi algemeen als in de TO is geborgd dat deze maximaal 20mm boven afgewerkte vloer uitkomen. Op de bouwkundig details is de drempel van de woningtoegangsdeuren eveneens maximaal 20mm.\n"]
["Afd. 4.5","4.5.1","Buitenberging","Een te bouwen woonfunctie heeft een rechtstreeks bereikbare buitenberging.","1 (gering)","Buitenberging - Elke woning beschikt over een eigen buitenberging die voldoet aan de ruimtelijke eisen.\n",null,null,null,null,null,null,null,null,1]
["Afd. 4.6","4.6.1","Buitenruimte","Een te bouwen woonfunctie heeft een rechtstreeks bereikbare buitenruimte.","1 (gering)","Buitenruimte - Iedere woning is voorzien van een privétuin welke ruimschoots voldoet.\n",null,null,null,null,null,null,null,null,1]
["Afd. 4.7","4.7.1","Opstelplaatsen","Een te bouwen bouwwerk heeft opstelplaatsen voor een aanrecht, een kooktoestel, een verwarmingstoestel en een warmwatertoestel.\n","1 (gering)","Opstelplaatsen - In iedere woning is voldoende opstelruimte voorzien voor een aanrecht met kooktoestel, een verwarmingstoestel en warmwatervoorziening (warmtepomp).\n",null,null,null,null,null,null,null,null,1]
["Hoofdstuk 5 Technische bouwvoorschriften uit het oogpunt van energiezuinigheid en milieu",null,null,null,null,null,{"$f":"G$19","v":"Beheersmaatregelen"},{"$f":"H$20","v":"Attesten / kwaliteitsverklaringen"},"Keuringen / metingen","Overig / acties",null,null,null,null,1]
[{"$f":"A$20","v":"Afdeling"},{"$f":"B$20","v":"Risico ID"},"Onderwerp","Aard van de eisen","Risicoklasse","Omschrijving Risicoaspect","Tekeningen / berekeningen","Attesten / kwaliteitsverklaringen","Keuringen / metingen","Overig / acties",{"$f":"K$20","v":"Keuringsfrequentie / omvang"},{"$f":"L$20","v":"Keuringsmoment"},"Commentaar kwaliteitsborger",null,1]
["Afd. 5.1","5.1.1","Energiezuinigheid","Een te bouwen bouwwerk is energiezuinig. Het betreft eisen aan energieprestatie, thermische isolatie en luchtvolumestroom.","1 (gering)","BENG-eisen - Uit de BENG-berekeningen blijkt dat alle woningen, inclusief diverse kopersopties voldoen aan de diverse Bouwbesluit eisen. \n",null,null,null,null,null,null,null,null,1]
[null,"5.1.2",null,null,"1 (gering)","Thermische isolatie - De Rc-waarden in de EPC-berekeningen voldoen aan de Bouwbesluit-eisen en zijn geborgd op de details en in de TO. Tevens is de g- en U-waarde van de beglazing geborgd in de TO.\n",null,null,null,null,null,null,null,null,1]
[null,"5.1.3",null,null,"1 (gering)","Luchtdichtheid - Ten aanzien van de infiltratie is uitgegaan van een  qv10 = 0,3 in de EPC-berekening (meetwaarde) . Dit houdt in dat een luchtdichtheidsmeting is vereist. Op basis van de bouwkundige details en de TO zijn de beoogde voorzieningen voldoende inzichtelijk en kan daarmee aan de qv10 worden voldaan. \n",null,null,null,null,null,null,null,null,1]
["Afd. 5.2","5.2.1","Milieu","Een te bouwen bouwwerk is zodanig dat de belasting van het milieu door de in het bouwwerk toe te passen materialen wordt beperkt. ","1 (gering)","Milieuprestatie - De MPG-berekening is opgesteld middels GPR gebouw. De uitkomst voldoet ruimschoots aan de gestelde eis van 0,8. \n"]
["Afd. 5.4","5.4.1","Laadinfrastructuur voor elektrische voertuigen","Een bouwwerk heeft voldoende laadinfrastructuur ten behoeve van elektrische voertuigen. ","4 (nvt)","n.v.t. bij grondgebonden woningen\n\n",null,null,null,null,null,null,null,null,1]
["Hoofdstuk 6 Voorschriften inzake installaties",null,null,null,null,null,{"$f":"G$19","v":"Beheersmaatregelen"},{"$f":"H$20","v":"Attesten / kwaliteitsverklaringen"},"Keuringen / metingen","Overig / acties",null,null,null,null,1]
[{"$f":"A$20","v":"Afdeling"},{"$f":"B$20","v":"Risico ID"},"Onderwerp","Aard van de eisen","Risicoklasse","Omschrijving Risicoaspect","Tekeningen / berekeningen","Attesten / kwaliteitsverklaringen","Keuringen / metingen","Overig / acties",{"$f":"K$20","v":"Keuringsfrequentie / omvang"},{"$f":"L$20","v":"Keuringsmoment"},"Commentaar kwaliteitsborger",null,1]
["Afd. 6.1","6.1.1","Verlichting ","Een bouwwerk heeft een zodanige verlichtingsinstallatie dat het bouwwerk veilig kan worden gebruikt en verlaten. \n","4 (nvt)","n.v.t. bij grondgebonden woningen\n\n",null,null,null,null,null,null,null,null,1]
["Afd. 6.2","6.2.1","Voorziening voor het afnemen en gebruiken van energie","Een bouwwerk met een voorziening voor het afnemen en gebruiken van energie heeft een veilige voorziening voor het afnemen en gebruiken van energie.\n","2 (mogelijk)","Energievoorziening - In de TO is aangegeven dat de E-installatie zal voldoen aan NEN 1010. E-tekeningen zijn per bouwnummer aangeleverd, echter nog zonder kopersopties. \nBij bnr.1 zit het stopcontact te dicht bij de douchehoek in de badkamer op de 1e verdieping.\n",null,null,null,null,null,null,null,null,1]
["Afd. 6.3","6.3.1","Watervoorziening","Een bouwwerk met een voorziening voor drinkwater of warmwater heeft een voorziening voor drinkwater of warmwater die de gezondheid niet nadelig beïnvloedt. \n","1 (gering)","Watervoorziening - De aansluitpunten en uitgangspunten zijn correct vermeld in de TO en zijn tevens inzichtelijk op de W-tekeningen. W-tekeningen zijn nog enkel van de basiswoningen.\n",null,null,null,null,null,null,null,null,1]
["Afd. 6.4","6.4.1","Afvoer van huishoudelijk afvalwater en hemelwater","Een bouwwerk heeft een zodanige voorziening voor de afvoer van huishoudelijk afvalwater of hemelwater dat het water zonder nadelige gevolgen voor de gezondheid kan worden afgevoerd.\n","1 (gering)","Riolering / hwa - Het principe van de hemelwaterafvoer is helder omschreven in de TO en betreft een infiltratie in de bodem. De binnenriolering is eveneens omschreven in de TO en de lozingstoestellen zijn aangegeven op de plattegronden. Tevens zijn er tekeningen aangeleverd met betrekking tot de positie van de ontluchtingsleidingen i.r.t. de opties.\n",null,null,null,null,null,null,null,null,1]
["Afd. 6.5","6.5.1","Tijdig vaststellen van brand","Een bouwwerk heeft zodanige voorzieningen dat brand tijdig kan worden ontdekt zodat veilig kan worden gevlucht.\n","1 (gering)","Rookmelders - Op de bouwkundige plattegronden zijn de posities van rookmelders inzichtelijk. Hoewel op zolder geen verblijfsruimte is gelegen wordt ook deze van een rookmelder voorzien. Het is niet inzichtelijk of deze aan een pendel onder de nok gemonteerd wordt. Geen bemerkingen. \nIn de TO worden geen rookmelders genoemd, het is nog niet inzichtelijk of deze op de E-installatie worden aangesloten en voorzien van een back-up batterij.\n",null,null,null,null,null,null,null,null,1]
["Afd. 6.6","6.6.1","Vluchten bij brand","Een bouwwerk heeft zodanige voorzieningen dat het ontvluchten goed kan verlopen.\n","4 (nvt)","n.v.t. bij grondgebonden woningen\n",null,null,null,null,null,null,null,null,1]
["Afd. 6.7","6.7.1","Bestrijden van brand","Een bouwwerk heeft een zodanige voorzieningen voor de bestrijding van brand, dat brand binnen redelijke tijd kan worden bestreden. ","1 (gering)","Bluswatervoorziening - Uit de situatietekening blijkt niet of de woningen binnen bereik van een toereikende bluswatervoorziening liggen. Dit is echter de verantwoordelijkheid van de gemeente.\n",null,null,null,null,null,null,null,null,1]
["Afd. 6.8","6.8.1","Bereikbaarheid voor hulpverleningsdiensten","Een bouwwerk is zodanig bereikbaar voor hulpverleningsdiensten dat tijdig bluswerkzaamheden kunnen worden uitgevoerd en hulpverlening kan worden geboden.\n","1 (gering)","Hulpverlening - Uit de situatietekening blijkt dat de woningen bereikbaar zijn voor hulpverleningsvoertuigen.\n",null,null,null,null,null,null,null,null,1]
["Afd. 6.9","6.9.1","Aanvullende regels tunnelveiligheid","Een wegtunnel met een tunnelengte van meer dan 250 m heeft zodanige voorzieningen da de veiligheid voor het wegverkeer is gewaarborgd. \n","4 (nvt)","n.v.t. bij grondgebonden woningen\n\n",null,null,null,null,null,null,null,null,1]
["Afd. 6.10","6.10.1","Bereikbaarheid van gebouwen voor gehandicapten","Een bouwwerk met een toegankelijkheidssector, een woongebouw zonder een toegankelijkheidssector en een gebouw zonder een toegankelijkheidssector zijn vanaf de openbare weg toegankelijk voor personen met een functiebeperking\n","4 (nvt)","n.v.t. bij grondgebonden woningen\n\n",null,null,null,null,null,null,null,null,1]
["Afd. 6.11","6.11.1","Tegengaan van veel voorkomende criminaliteit","Een woongebouw heeft zodanige voorzieningen dat veel voorkomende criminaliteit wordt voorkomen.\n","4 (nvt)","n.v.t. bij grondgebonden woningen\n\n",null,null,null,null,null,null,null,null,1]
["Afd. 6.12","6.12.1","Veilig onderhoud gebouwen","Een te bouwen gebouw is zodanig dat het onderhoud aan het gebouw veilig kan worden uitgevoerd.\n","1 (gering)","Veilig onderhoud - De Checklist veilig onderhoud ontbreekt, maar o.b.v. de bouwkundige tekeningen kan zonder meer worden gesteld dat veilig onderhoud mogelijk is.\n"]
["Afd. 6.13","6.13.1","Technische bouwsystemen","Een te bouwen bouwwerk heeft technische bouwsystemen die voldoen aan eisen ten behoeve van een optimaal energiegebruik.\n"]
["Afd. 6.14","6.14.1","Elektronische communicatie","Een te bouwen gebouw met een aansluiting op het distributienet voor elektriciteit heeft een voorziening voor de aansluiting op een openbaar elektronisch communicatienetwerk met hoge snelheid als bedoeld in artikel 2, derde lid, van de richtlijn breedband.\n",null,null,null,null,null,null,null,null,null,null,1]
["Aanvullende eisen vanuit omgevingsfactoren, bevoegd gezag, contractueel of SWK-modules",null,null,null,null,null,{"$f":"G$19","v":"Beheersmaatregelen"},{"$f":"H$20","v":"Attesten / kwaliteitsverklaringen"},"Keuringen / metingen","Overig / acties",null,null,null,null,1]
[null,{"$f":"B$20","v":"Risico ID"},"Onderwerp","Aard van de eisen","Risicoklasse","Omschrijving Risicoaspect","Tekeningen / berekeningen","Attesten / kwaliteitsverklaringen","Keuringen / metingen","Overig / acties",{"$f":"K$20","v":"Keuringsfrequentie / omvang"},{"$f":"L$20","v":"Keuringsmoment"},"Commentaar kwaliteitsborger",null,1]
["OMG","A1.1",null,null,null,null,null,null,null,null,null,null,null,null,1]
["BG","A1.2",null,null,null,null,null,null,null,null,null,null,null,null,1]
["CONTR","A1.3",null,null,null,null,null,null,null,null,null,null,null,null,1]
["SWK","A1.4",null,null,null,null,null,null,null,null,null,null,null,null,1]
[null,"A1.5",null,null,null,null,null,null,null,null,null,null,null,null,1]

{"sheet":"Kenmerken tbv Kwaliteitsborging","index":4,"n_rows":15,"n_cols":13,"rows_kept":15,"cut":false,"hidden":false,"merged":[]}
[]
[null,"Kenmerken t.b.v. inschatting kwaliteitsborging",null,null,"FUNDERING","BG-VLOER","DRAGENDE WANDEN/KOLOMMEN","VERDIEPINGSVLOEREN","KAPCONSTRUCTIE","GEVELCONSTRUCTIE",null,"CONSTRUCTEUR CHECKT","ATTESTEN/CERTIFICATEN"]
[null,null,null,null,"strokenfundering","ribcassettevloer","kzs wanden gelijmd","kanaalplaatvloer","sporenkap, traditioneel","spouwmuur, kzs-baksteen",null,"alle engineering en wapening in situ","product, proces en montage"]
[null,null,null,"onder attest/certificaat:","prefab heipaal en prefab balk","geïsoleerde kanaalplaatvloer","prefab beton wanden/kolommen","leidingplaatvloer","sporenkap, prefab","spouwmuur, beton-baksteen",null,"alle engineering compleet","product en proces"]
[null,"Fundering","prefab heipaal en prefab balk","geen attest of certificaat","prefab heipaal en in situ balk","in situ betonvloer","in situ beton wanden/kolommen","prefab massieve vloer","gordingkap, traditioneel","spouwmuur, hsb-baksteen",null,"alle engineering op uitgangspunten","product en montage"]
[null,"Bg-vloer","geïsoleerde kanaalplaatvloer","product, proces en montage","boorpaal en prefab balk","houten vloer (renovatie)","hsb-wanden","in situ betonvloer","gordingdooskap","hsb met gevelbekleding",null,"alleen engineering fundering en casco","proces en montage"]
[null,"Dragende wanden / kolommen","kzs wanden gelijmd","product en proces","boorpaal en in situ balk","PS-isolatievloer","anders, nl. ...","breedplaatvloer","bijzondere kapvorm/-constr.","kzs met gevelbekleding",null,"alle wapening in situ","andere borging product, nl. …"]
[null,"Verdiepingsvloeren","kanaalplaatvloer","product en proces","kelder op palen","anders, nl. ...",null,"houten vloer systeem","n.v.t.","buitengevelisolatie met stuc",null,"funderingswapening in situ","andere borging proces, nl. …"]
[null,"Kapconstructie","sporenkap, prefab","product, proces en montage","kelder op staal",null,null,"ander, nl. …","anders, nl. …","betonelement incl. isolatie",null,"vloerwapening in situ","geen attest of certificaat"]
[null,"Gevelconstructie","spouwmuur, kzs-baksteen","andere borging product, nl. …","anders, nl. …",null,null,null,null,"element incl. isolatie en steenstrips",null,"anders, nl. …","anders, nl. …"]
[null,"Aantal woningen","…",null,null,null,null,null,null,"anders, nl. …"]
[null,"Aantal woningtypes","…"]
[null,"Aantal bouwblokken","…"]
[null,"Kopersopties berekend\n(daglicht, ventilatie, spui, GO/VG, EPC/BENG)","ja/nee/de volgende onderdelen niet: "]
[null,"Hoofdconstructeur controleert","alleen engineering fundering en casco"]

{"sheet":"Gevolgklasse","index":5,"n_rows":11,"n_cols":3,"rows_kept":11,"cut":false,"hidden":false,"merged":[]}
[]
[]
["Gevolgklasse 1","Gevolgklasse 2","Gevolgklasse 3"]
["1. Grondgebonden eengezinswoningen, inclusief nevenfuncties (garage, kantoor aan huis).\n","Definitieve definitie volgt nog.","Definitieve definitie volgt nog."]
["2. Woonboten.\n- Een drijvende woning of woonboot"]
["3. Vakantiewoningen.\n- Een recreatiewoning, als deze grondgebonden is, en geen deel uitmaakt van een logiesgebouw."]
["4. Bedrijfspanden van maximaal 2 bouwlagen, inclusief een klein kantoor / kantine.\n- Een industriefunctie, als deze niet meldingsplichtig is op brandveilig gebruik, niet milieu-vergunningplichtig is en er geen gelijkwaardigheid wordt toegepast op brandveiligheid en constructieve veiligheid.\n- Als binnen of aan de industriefunctie een kantoor zit, is dit een nevengebruiksfunctie van deze industriefunctie mits deze voldoet aan de overige voorwaarden in artikel 2.17 Bbl.\n- Een agrarisch bedrijf is een industriefunctie, als deze niet meldingsplichtig is op brandveilig gebruik, niet milieu-vergunningplichtig is en er geen gelijkwaardigheid wordt toegepast op brandveiligheid en constructieve veiligheid."]
["5. Aanbouwen aan overige gebruiksfuncties van maximaal 2 bouwlagen voor opslag en dergelijke."]
["6. Kleine fiets- en voetgangersbruggen (niet over rijks- of provinciale wegen), maximaal 20 meter overspanning\n- Een brug bestemd voor langzaam verkeer met een maximaal te overbruggen afstand van niet meer dan 20 meter en die niet is gelegen boven een rijks- of provinciale weg."]
["7. Overige bouwwerken geen gebouw zijnde tot maximaal 20 meter hoog (masten, antennes, etc.)\n- Een bovengronds gelegen bouwwerk geen gebouw zijnde niet hoger dan 20 meter dat niet voldoet aan de voorwaarden vergunningvrij te mogen worden gebouwd.\n- Een kunstwerk hoger dan 5 meter en lager dan 20 meter.\n- Een infrastructureel werk zoals een geluidsscherm hoger dan 5 meter en lager dan 20 meter."]
["8. Verbouwingen van hiervoor genoemde bouwwerken vallen (voor zover niet vergunningvrij) ook onder gevolgklasse 1.\nVoorbeelden hiervan zijn:\n- Het aanbrengen van een balkon aan een grond gebonden woning , aangezien dit een toevoeging is op een tweede bouwlaag.\n- Het bouwen van een uitbouw met dakterras aan een grondgebonden woning , aangezien dit tevens bouwen van een tweede bouwlaag betreft.\n- Het aanbrengen van kap op een uitbouw van een grondgebonden woning, als deze is voorzien van een tweede bouwlaag met verblijfsgebied en/of hoger is dan 5 meter.\n- Het optrekken van een achtergevel van een grond gebonden woning.\n- Het aanbrengen van een nokverhoging op een grondgebonden woning.\n\n- Een bijbehorend bouwwerk met een nevengebruiksfunctie zoals een opslagruimte bij of aan een winkelfunctie of een berging bij een schoolfunctie of andere functie die niet binnen gevolgklasse 1 valt."]

{"sheet":"Eisen aan Keuringsplan","index":6,"n_rows":101,"n_cols":8,"rows_kept":101,"cut":false,"hidden":false,"merged":[]}
[null,"Bron: Richtlijn voor Ondernemers, Instrument Kwaliteitsborging VKB"]
[null,"Te ontvangen documenten van de Ondernemer"]
[null,"Projectkwaliteitsplan (per project), voorzien van:"]
[null,"- Organisatie en communicatie\n    o Organisatieschema van het projectteam (naam en contactgegevens van de betrokken personen, zoals eindverantwoordelijke project (projectleider, o.g.), interne kwaliteitsmedewerker (verantwoordelijk voor de interne kwaliteitsborging), naam uitvoerder etc);\n    o Vergaderoverzicht (met betrekking tot kwaliteitsaspecten);\n    o Wijze waarop gecommuniceerd wordt met derden, zoals de Opdrachtgever, de Kwaliteitsborger, Bevoegd Gezag, etc;",null,null,null,null,null,"Borgingsplan opstellen."]
[null,"- Risicobeheersing en borgingsplan\n    o Procedure met betrekking tot actueel houden van de risicobeoordeling (zoals bedoelt onder de Wkb);\n    o Bewaken en uitvoeren van beheersmaatregelen;\n    o Bewaken van de uitgangspunten uit het borgingsplan.",null,null,null,null,null,"Het borgingsplan dient minimaal de volgende onderdelen te beschrijven (Bkb 3.80):"]
[null,"- Kwaliteitsbeheersing en afwijkingen:\n    o Omschrijving van de projectspecifieke toepassing van het kwaliteitssysteem (van toepassing zijnde procedures etc);\n    o Keuringsystematiek;\n    o Gebruik en toelichting van keuringsapplicatie (software indien van toepassing);\n    o Bewaking van de planning en voortgang van de keuringen;\n    o Wijze van registreren en bewaken van afwijkingen.",null,null,null,null,null,"a) Welke maatregelen zijn getroffen om de bouwtechnische risico’s te voorkomen of te beperken;"]
[null,"- Documentbeheer:\n    o Toelichting documentbeheer;\n    o Verantwoordelijke voor het documentenbeheer;\n    o Wijze waarop de planning en bewaking van documenten plaatsvindt.",null,null,null,null,null,"b) Op welke wijze het ontwerp van het bouwplan voldoet aan het Bouwbesluit/Bbl;"]
[null,null,null,null,null,null,null,"c) Op welke wijze de uitvoering van de bouwwerkzaamheden voldoen aan het Bouwbesluit/Bbl;"]
[]
[null,"Risicobeoordeling VKB",null,null,null,null,null,"d) Hoe is het borgingplan tot staand gekomen;"]
[null,"Om tot een goede borging te komen moeten ten minste de technische risico’s in kaart gebracht worden op bouwkundig gebied waarbij (minimaal) rekening wordt gehouden met de voorschriften (hoofdstuk 2 t/m 6) van het Bouwbesluit 2012/HS 4 en 5 Bbl) en de door de gemeente benoemde omgevingsrisico’s. De te inventariseren risico’s worden bepaald door de ontwerpuitgangspunten, complexiteit ontwerp, kopers opties, noviteiten, materiaalkeuze, het toe te passen bouwsysteem en complexiteit van de uitvoering.",null,null,null,null,null,"e) De aard en omvang van de uit te voeren kwaliteitsborging;"]
[null,"De Ondernemer stelt voor het inventariseren van de risico’s een lijst samen waarop alle aspecten van het Bouwbesluit/Bbl worden benoemd.",null,null,null,null,null,"f) De voor de kwaliteitsborging eindverantwoordelijke personen;"]
[null,"Voor ieder aspect wordt een risico bepaald, waarbij met 3 risicoklassen wordt gewerkt: Klasse 1 (gering risico), Klasse 2 (mogelijk risico), Klasse 3 (risico)."]
[null,"De aangegeven risicoklassen kunnen als volgt worden omschreven:"]
[]
[null,"Klasse 0 (afgehandeld)"]
[null,"De beheersing van het aanvankelijk geconstateerde risico is gedurende de uitwerking en/of uitvoering dusdanig aangetoond, dat het voldoende aannemelijk is dat aan de betreffende eis(en) wordt voldaan in de as-built situatie."]
[]
[null,"Klasse 1 (gering risico)"]
[null,"De geconstateerde risico’s hebben geen effect op de beheersbaarheid van de as-built kwaliteit bij oplevering van het project en voor het verstrekken van de Verklaring door de Kwaliteitsborger. Op basis van de huidige uitwerking en/of betrokken leveranciers/partijen in het huidige stadium zijn geen problemen met de kwaliteit/regelgeving te verwachten en zijn de technische risico’s beheerst. De beoordeling geeft geen aanleiding tot aanvullende beheersmaatregelen voor het interne borgingsproces van het project en inspectie van dit onderdeel wordt uitgevoerd conform de standaard voor de aantoonbaarheid.\n• Onderdelen met risicoklasse 1 kunnen zonder verdere aanpassing worden uitgevoerd en kwalitatief worden beoordeeld;"]
[]
[null,"Klasse 2 (mogelijk risico)"]
[null,"De geconstateerde risico’s hebben een mogelijk effect op de as-built kwaliteit van het project en voor het verstrekken van de Verklaring. Op basis van de huidige uitwerking en/of betrokken leveranciers/partijen in het huidige stadium zijn geen directe problemen met de kwaliteit/regelgeving te verwachten en is op basis van de aan de projectfase gerelateerde uitwerking het geconstateerde risico beheerst. Om het gesignaleerde mogelijke risico in het verdere proces van de interne borger te blijven beheersen zijn mogelijk aanvullende beheersmaatregelen/aanpassingen van materialen en/of uitvoeringsmethodiek noodzakelijk. De tijdige signalering van een mogelijk risico vereist verdere verhoging van de frequentie van de inspecties voor dit onderdeel.\n• Onderdelen met een risicoklasse 2 moeten heroverwogen worden en indien niet aangepast met een verhoogde keuringsfrequentie in het keuringsplan worden opgenomen;"]
[]
[null,"Klasse 3 (risico)"]
[null,"De geconstateerde risico’s hebben een direct effect op de as-built kwaliteit van het project en zonder verdere maatregelen kan geen Verklaring worden verstrekt door de Kwaliteitsborger. Op basis van de huidige uitwerking en/of betrokken leveranciers/partijen in het huidige stadium zijn problemen met de kwaliteit/regelgeving aantoonbaar te verwachten en zijn de geconstateerde risico’s onvoldoende beheerst. De verdere voortgang van de kwaliteitsborging en/of de start bouw van het project worden opgeschort totdat de aanvullende aanpassingen in het ontwerp of van materialen en/of uitvoeringstechniek door de Ondernemer zijn doorgevoerd en het aanwezige risico is gereduceerd tot een lagere risicoklasse.\n• Onderdelen met een risicoklasse 3 moeten in de ontwerpfase worden aangepast of verder worden beheerst door aanvullende maatregelen. Met de uitvoering en/of de fabricage van bouwdelen / elementen mag niet worden gestart voordat de risico’s zijn verlaagd. Het betreffende onderdeel mag niet in het keuringsplan worden opgenomen zonder aanpassingen zijn doorgevoerd en het risico opnieuw is beoordeeld."]
[]
[null,"Klasse 4 (n.v.t.)"]
[null,"Het betreffende risico-aspect c.q. de betreffende eis is niet van toepassing op dit project."]
[]
[null,"Het is wenselijk dat het realisatieproces door de Ondernemer risico gestuurd bewaakt wordt. Dit houdt in dat als tijdens de realisatie wijzigingen worden doorgevoerd in het ontwerp en/of uitvoeringsfouten worden geconstateerd het eventueel bijbehorende risico opnieuw moet worden bekeken. Op basis van de nieuwe risico inschatting moet het bijbehorend project keuringsplan van de Ondernemer mogelijk worden bijgesteld. Als het risico toeneemt zullen in de realisatie door de Ondernemer maatregelen moeten worden genomen om het risico te beheersen"]
[null,"Dit kan op verschillende wijzen:"]
[null,"• Meer keuringen en/of uitbreiding toetsingsgrondslag;\n• Aanvullende (detailberekeningen;\n• Metingen;\n• Aanpassing detaillering;\n• Aanpassing uitvoeringsmethodiek;\n• Aanpassing materiaaltoepassing."]
[null,"De Kwaliteitsborger zal tijdens de uit te voeren audits de bevindingen van de Ondernemer en doorgevoerde wijzigingen in de risicobeheersing beoordelen en eventueel het borgingsplan aanpassen aan de nieuwe situatie. Als bijvoorbeeld naar de mening van de Kwaliteitsborger de beheersing van de kwaliteitsrisico’s in het project onvoldoende zijn, zal de auditfrequentie door de Kwaliteitsborger kunnen worden verhoogd. Aanpassingen aan het borgingsplan zullen alleen bij grote tekortkomingen in het borgingsproces van de Ondernemer en/of wijzigingen van de projectkwaliteit plaats vinden."]
[]
[]
[null,"Het Keuringsplan\nPlan opgesteld door de Ondernemer, houdende onderdelen van door hem te verrichten werkzaamheden, die worden onderworpen aan door hem uit te voeren keuringen."]
[null,"Het keuringsplan geeft aan welke onderdelen van het Bouwbesluit/Bbl gekeurd moeten worden om aan te tonen dat het project voldoet aan de geldende regelgeving. Tevens wordt in het keuringsplan aangegeven hoe groot de steekproef is per onderdeel. De risicoanalyse is van invloed op de steekproefgrootte."]
[null,"In het project keuringsplan van de Ondernemer moeten de te inspecteren onderdelen worden benoemd, de frequentie, de inspectiemomenten, de toetsingsgrondslag. De frequentie en de inspectiemomenten moeten zichtbaar gemaakt worden door deze te koppelen aan de planning van een project (zodat in de overallplanning van de Ondernemer de frequentie en de inspectiemomenten zichtbaar worden voor een ieder). Bij de uitvoering van een inspectie moeten datum, locatie, inspecteur, bewijs (foto, omschrijving) en beoordelingsresultaat worden vastgelegd. Dit kan in een inspectieoverzicht of door middel van een verwijzing naar een ander registratiedocument."]
[null,"Herstelcyclus\nIndien een uitgevoerde inspectie niet het gewenste resultaat oplevert moet er een verbetering en/of herstel worden uitgevoerd. Het is wenselijk dat een organisatie binnen het eigen kwaliteitssysteem beschikt over een duidelijke signalering, registratie en verbetercyclus voor technische afwijkingen. De verbetercyclus moet duidelijk geregistreerd en onderbouwd worden. Aan het eind van de cyclus moet een herinspectie plaatsvinden die in het bestaande keuringsplan wordt geregistreerd, waaruit blijkt dat de gesignaleerde afwijking daadwerkelijk is verholpen. De verbetercyclus begint daarna met het opnieuw vaststellen van de eisen waaraan een proces of product al moe(s)t voldoen en wie verantwoordelijk is voor de uit te voeren kwaliteitsinspectie. Op projectniveau bepaalt de kwaliteitsmanager de uitgangspunten voor de verbetercyclus."]
[]
[null,"In de realisatiefase is een definitief keuringsplan vastgesteld voor het project. Bij start bouw dient dit vastgestelde definitief keuringsplan van de Ondernemer in de bouwkeet aanwezig te zijn. De uitvoering van de in dit keuringsplan aangegeven inspecties is de verantwoordelijkheid van de Ondernemer. De Kwaliteitsborger, de kwaliteitsmanager voor het project en het projectteam van de Ondernemer moeten inzicht hebben in door wie, wanneer en hoe de betreffende inspecties worden uitgevoerd. Dit kan bijvoorbeeld door een constructeur van het project of de onderaannemers. Bij de verdeling en verdere uitvoering en controle van de inspecties tijdens realisatie moet de Ondernemer met de volgende punten rekening houden:"]
[null,"1. Het benodigde kennisniveau voor uitvoering van de betreffende keuring;\n2. De eenduidigheid van het geregistreerde resultaat;\n3. Het toetsen aan het vereiste kwaliteitsniveau conform het vastgestelde keuringsplan;\n4. De traceerbaarheid van eventuele afwijkingen / bevindingen."]
[]
[null,"1. Het benodigde kennisniveau\nBij het keuren en borgen van de eigen werkzaamheden moeten door de Ondernemer personen/partijen ingeschakeld worden die over de juiste kennis beschikken om het te inspecteren onderdeel inhoudelijk te kunnen toetsen. Naast opleidingsniveau en ervaring speelt hierbij de specialistische kennis een belangrijke rol. Een toetsing door iemand met het juiste kennisniveau geeft vertrouwen in de borging en de beheersing van de kwaliteit. Bij eventuele kwalitatieve afwijkingen kan de toetser of een gekwalificeerde externe adviseur een onderbouwd hersteladvies aangeven dat leidt tot een kwalitatief goede oplossing en correcte kwaliteitsniveau."]
[null,"2. Eenduidigheid van het geregistreerde resultaat\nHet geregistreerde resultaat van een inspectie moet zo objectief mogelijk zijn en eenduidig. Een daadwerkelijk omschreven prestatieniveau in een getalswaarde is meestal het beste. Het alleen volstaan met een registratie van het oordeel (positief of negatief) is onvoldoende. De daadwerkelijke meetgegevens / bevinding van de keuring moeten als keuringsresultaat traceerbaar zijn evenals de weegfactor voor de beoordeling."]
[null,"3. Het kwaliteitsniveau conform het keuringsplan\nOm aan te tonen dat het gerealiseerde bouwwerk aan het Bouwbesluit/Bbl voldoet moet voor ieder te keuren onderdeel van het Bouwbesluit/Bbl in ieder geval een toetsingsgrondslag worden vastgelegd. De Ondernemer moet op basis van het ontwerp en zijn eigen kwaliteitseisen in het keuringsplan voor de diverse te keuren onderdelen een kwaliteitsniveau bepalen (normen e.d.). Dit niveau moet als toetsingsgrondslag gehanteerd worden voor de inspecties. Indien het resultaat van de inspectie lager is dan het vereiste niveau dan moeten herstelmaatregelen worden uitgevoerd. Na de realisatie van de herstelmaatregelen moet er een her inspectie worden uitgevoerd waarbij wordt vastgesteld dat het betreffende onderdeel wel aan de geldende kwaliteitseisen voldoet. Het minimale kwaliteitsniveau voor een keuringsplan is het vigerende Bouwbesluit/Bbl behorende bij de verstrekte omgevingsvergunning."]
[null,"4. Traceerbaarheid van afwijkingen\nOm de resultaten van de inspecties en het eventueel herstel van de bevindingen / afwijkingen tijdens audits te kunnen aantonen richting de Kwaliteitsborger dient bij iedere inspectie datum, locatie en aard van de afwijking te worden vastgelegd. Tevens dient traceerbaar te zijn welke herstelmaatregelen zijn uitgevoerd om kwaliteit van het betreffende bouwdeel te herstellen. Naast deze aandachtspunten voor de aantoonbaarheid van de kwaliteit van het project is het ook van belang wanneer een inspectie plaats vindt binnen het uitvoeringsproces. In een keuringsplan dienen het aantal inspecties (steekproefgrootte) en het inspectiemoment te worden aangegeven. Het projectteam van de Ondernemer is binnen het project verantwoordelijk voor het moment van inspectie. Om dit goed te bewaken verdient de voorkeur om de inspectiemomenten te koppelen aan de betreffende projectplanning. Criteria voor het bepalen van het juiste inspectiemoment zijn:"]
[null,"1. Inspecteren op een kritisch moment in het bouwproces;\n2. Inspecteren omdat dit op een later moment onmogelijk is;\n3. Inspecteren zodat herstel bij een negatief resultaat nog mogelijk is;\n4. Inspecteren wanneer de condities voor de keuring overeenkomen met de toetsingsgrondslag."]
[]
[null,"1. Kritische moment proces\nInspecteren op kritische momenten in het bouwproces is wenselijk omdat dan het kwaliteitsrisico en de kans dat het resultaat in de As-Built situatie niet wordt gehaald het grootst zijn. De Ondernemer dient in ieder geval zijn proces kritisch te bekijken en op een aantal momenten afhankelijk van het te inspecteren onderdeel een toetsing uit te voeren. Kritische momenten kunnen vaak werkzaamheden zijn die bij afwijkingen grote gevolgen voor de kwaliteit kunnen hebben. De kritische procesgang bepaalt ook veelal de frequentie van de toetsen."]
[null,"2. Keuringen niet meer mogelijk\nVeel inspecties kunnen niet of onvoldoende zorgvuldig worden uitgevoerd in een later stadium van het proces omdat de betreffende onderdelen niet meer zichtbaar zijn of onbereikbaar. Ook kunnen de omstandigheden zodanig zijn beïnvloed bij verdere afbouw dat een juiste meting niet meer mogelijk is. De Ondernemer moet er dus op toezien dat de inspecties op het juiste moment in het proces worden uitgevoerd."]
[null,"3. Herstel afwijkingen\nHet tijdstip van een inspectie moet zodanig worden gekozen dat bij een negatief resultaat de afwijking nog kan worden hersteld en een herbeoordeling kan plaats vinden. De Ondernemer kan dit eventueel managen binnen de keuringssystematiek door stop en bijwoonpunten in te voeren. Hiermee worden in het bouwproces signaleringsmomenten ingevoerd voor de inspecties en mag in sommige gevallen de bouw geen doorgang vinden als de inspectie nog niet heeft plaats gevonden."]
[null,"4. Condities keuringen\nBij veel kwaliteitsmetingen is niet alleen het resultaat vastgelegd maar zijn ook de omstandigheden omschreven waaronder een inspectie moet plaats vinden. Wijken de omstandigheden af dan wordt de kwaliteitsmeting minder betrouwbaar. Dit geldt ook voor de apparatuur waarmee gemeten wordt. De Ondernemer zal er op toe moeten zien dat zowel de omstandigheden als de apparatuur zoveel mogelijk overeenkomen met de eisen die voor de keuring gelden."]
[]
[]
[]
[]
[]
[]
[]
[]
[]
[]
[]
[]
[]
[null,null,null,null,null,null,null,"g) De wijze waarop de verschillende onderdelen van het bouwplan in samenhang worden beoordeeld;"]
[null,null,null,null,null,null,null,"h) De wijze waarop integraal wordt beoordeeld of de bouwwerkzaamheden voldoen aan de regels, bedoeld in de H2 tot en met H6 van het Bouwbesluit / H4 en H5 Besluit bouwwerken leefomgeving;"]
[null,null,null,null,null,null,null,"i) In welke gevallen en op welke momenten het borgingsplan wordt geactualiseerd;"]
[null,null,null,null,null,null,null,"j) Welke normen of kwaliteitsverklaringen bouw, dan wel gelijkwaardige maatregelen bij de bouwwerkzaamheden worden toegepast;"]
[null,null,null,"Let op, bij elke audit de laatste versie opvragen.",null,null,null,"k) Op welke specifieke bouwwerkzaamheden, rekening houdend met de bijzonder lokale omstandigheden, de beoordeling ten minste is gericht; én"]
[null,null,null,null,null,null,null,"l) Bij welke bouwwerkzaamheden rekening wordt gehouden met andere kwaliteitsborgingssystemen."]
[]
[]
[]
[]
[]
[]
[]
[null,"a. de aard, inhoud en omvang van de door de Ondernemer te verrichten inspanningen in het kader van de borging van zijn eigen kwaliteit;",null,"Niet duidelijk zichtbaar in keuringsplan bij Geraniumstraat te Made"]
[null,"b. de uitgangspunten;",null,"Wat wordt hieronder verstaan?"]
[null,"c. het beoordelingskader van de kwaliteitsborging, dat de Ondernemer met zijn Opdrachtgever is overeengekomen en het Bouwbesluit zoals dat van toepassing is op de datum van de aanvraag omgevingsvergunning;",null,"Niet opgenomen in keuringsplan bij Geraniumstraat te Made"]
[null,"d. het tijdschema waarbinnen de Ondernemer zijn werkzaamheden verricht, waarbij nader gespecificeerd wordt welke keuringen, op welk tijdstip en door wie zullen plaatsvinden;"]
[null,"e. het aanwijzen van natuurlijke personen die (i) naar kennisgebied gespecificeerde werkzaamheden verrichten en die (ii) belast zijn met de coördinatie en de projectleiding tezamen met of namens de Ondernemer;",null,"Niet opgenomen in keuringsplan bij Geraniumstraat te Made"]
[null,"f. de gevolgklasse, die van toepassing is op het project;",null,"Niet opgenomen in keuringsplan bij Geraniumstraat te Made"]
[null,"g. de wijze waarop, en indien gewenst de frequentie waarmee, de informatieoverdracht tussen de Ondernemer en de Kwaliteitsborger plaatsvindt.",null,"Niet opgenomen in keuringsplan bij Geraniumstraat te Made"]
[]
[null,"In Keuringsplan opnemen:"]
[null,"- de te keuren onderdelen"]
[null,"- de steekproefomvang"]
[null,"- de keuringsmomenten"]
[null,"- de keuringsgrondslag"]
[null,"- frequentie van de keuringen (deze kunnen gekoppeld worden aan de planning)"]
[]
[null,"Uitvoering keuring:"]
[null,"- tijdstip"]
[null,"- locatie"]
[null,"- keurder"]
[null,"- bewijs (foto, omschrijving, etc.)"]
[null,"- beoordelingsresultaat"]